Transaction_ID,Transaction_Date,Department,Beneficiary,Net_Transaction_Amount,Summary_of_Purpose,MCC,Merchant_Description
CCC_10000088_1,01/10/2021,Parks & Green Spaces,CHANDLER MATERIALS CHELMSFORD,24.09,General Expense,5211,LUMBER AND BUILDING MATERIALS STORES
CCC_10000077_5,03/10/2021,Parks & Green Spaces,AMZNMKTPLACE AMAZON.CO AMAZON.CO.UK,15.77,Printing & Stationary,5999,MISCELLANEOUS & SPECIALTY STORES
CCC_10000078_1,04/10/2021,Parks & Green Spaces,MCDONALDS CHELMSFORD,19.75,General Expense,5814,FAST FOOD RESTAURANTS
CCC_10000238_3,04/10/2021,South Essex Parking Partnership,RAYLEIGH SF CONNECT ESSEX,55,Fuel,5541,GAS/SERVICE STATIONS WITH/WITHOUT ANCILLARY SERVICES
CCC_10000695_2,04/10/2021,Building Services,KINGDOM COFFEE READING,58.35,General Expense,5499,MISC FOOD STORES - SPECIALTY MARKETS & CONVENIENCE
CCC_10000066_5,05/10/2021,Parks & Green Spaces,TESCO-STORES 6724 CHELMSFORD,16.54,General Expense,5411,GROCERY STORES OR SUPERMARKETS
CCC_10000088_2,05/10/2021,Parks & Green Spaces,TESCO-STORES 6724 CHELMSFORD,2.33,General Expense,5411,GROCERY STORES OR SUPERMARKETS
CCC_10000077_4,06/10/2021,Parks & Green Spaces,AMZNMKTPLACE AMAZON.CO AMAZON.CO.UK,20.81,Printing & Stationary,5999,MISCELLANEOUS & SPECIALTY STORES
CCC_10000695_3,06/10/2021,Building Services,TESCO STORES 5408 CHELMSFORD,9,General Expense,5411,GROCERY STORES OR SUPERMARKETS
CCC_10000064_5,07/10/2021,Parks & Green Spaces,AMZNMKTPLACE AMAZON.CO AMAZON.CO.UK,6.58,General Expense,5999,MISCELLANEOUS & SPECIALTY STORES
CCC_10000064_6,07/10/2021,Parks & Green Spaces,AMZNMKTPLACE AMAZON.CO AMAZON.CO.UK,60.74,Printing & Stationary,5999,MISCELLANEOUS & SPECIALTY STORES
CCC_10000064_7,07/10/2021,Parks & Green Spaces,AMZNMKTPLACE AMAZON.CO AMAZON.CO.UK,79.03,Printing & Stationary,5999,MISCELLANEOUS & SPECIALTY STORES
CCC_10000066_4,08/10/2021,Parks & Green Spaces,AMZNMKTPLACE AMAZON.CO AMAZON.CO.UK,6.65,Printing & Stationary,5999,MISCELLANEOUS & SPECIALTY STORES
CCC_10000695_4,08/10/2021,Building Services,ALLIANCE DISPOSABLES CREWE,57.48,General Expense,5811,CATERERS
CCC_10000188_1,11/10/2021,Legal & Democratic Services,WWW.SHAWS.CO.UK DARTFORD,130,New Equipment,2741,MISCELLANEOUS PUBLISHING AND PRINTING
CCC_10000695_5,11/10/2021,Building Services,WWW.NISBETS.COM 0845 1110281,233.87,General Expense,5964,CATALOG MERCHANT
CCC_10000721_1,11/10/2021,Marketing & Communications Team,AMZNMKTPLACE AMAZON.CO AMAZON.CO.UK,39.12,New Equipment,5999,MISCELLANEOUS & SPECIALTY STORES
CCC_10000088_3,12/10/2021,Parks & Green Spaces,B&M 560 - CHELMSFORD CHELMSFORD,12.56,General Expense,5399,GENERAL MERCHANDISE OR CONVENIENCE FOOD STORES
CCC_10000088_4,12/10/2021,Parks & Green Spaces,HOMEBASE LTD CHELMSFORD,10.71,General Expense,5200,HOME SUPPLY WAREHOUSE STORES
CCC_10000136_5,12/10/2021,Digital Services,123 REG LTD 03454502310,15.99,Publications,5968,CONTINUITY/SUBSCRIPTION MERCHANT
CCC_10000175_9,12/10/2021,Public Health & Protection Services,ESSEX COUNTY COUNCI EC CHELMSFORD,11,Printing & Stationary,9399,GOVERNMENT SERVICES (NEC) OR FIRE DEPARTMENTS
CCC_10000181_1,12/10/2021,Leisure & Heritage Services,AMZNMKTPLACE AMAZON.CO AMAZON.CO.UK,16.99,New Equipment,5999,MISCELLANEOUS & SPECIALTY STORES
CCC_10000695_6,12/10/2021,Building Services,AMZNMKTPLACE AMAZON.CO AMAZON.CO.UK,4.49,General Expense,5999,MISCELLANEOUS & SPECIALTY STORES
CCC_10000695_7,12/10/2021,Building Services,AMZNMKTPLACE AMAZON.CO AMAZON.CO.UK,20.15,General Expense,5999,MISCELLANEOUS & SPECIALTY STORES
CCC_10000695_8,12/10/2021,Building Services,AMZNMKTPLACE AMAZON.CO AMAZON.CO.UK,14.81,General Expense,5999,MISCELLANEOUS & SPECIALTY STORES
CCC_10000721_2,12/10/2021,Marketing & Communications Team,FACEBK  E4ZQ36BZ72 FB.ME/ADS,48.21,Advertising,7311,ADVERTISING SERVICES
CCC_10000721_3,12/10/2021,Marketing & Communications Team,FACEBK KVW5J6FL92 FB.ME/ADS,200,Advertising,7311,ADVERTISING SERVICES
CCC_10000073_1,13/10/2021,Parks & Green Spaces,OAKLEY TURF FARM HARWICH,443,Grounds Maintenance Materials,5261,GARDEN AND LAWN SUPPLY STORES OR NURSERIES
CCC_10000695_9,13/10/2021,Building Services,AMZNMKTPLACE AMAZON.CO AMAZON.CO.UK,3.5,General Expense,5999,MISCELLANEOUS & SPECIALTY STORES
CCC_10000078_10,14/10/2021,Parks & Green Spaces,DESIGN PRINT BANNER LT LONDON,390.21,General Expense,5712," FURNITURE, HOME FURNISHINGS & EQUIP STORES EXCL APPLIANCES "
CCC_10000517_12,14/10/2021,Human Resources,POSTMYJOB.CO.UK ALTRINCHAM,474,Advertising,8999,PROFESSIONAL SERVICES (NEC)
CCC_10000695_10,14/10/2021,Building Services,AMZNMKTPLACE AMAZON.CO.UK,12.99,General Expense,5999,MISCELLANEOUS & SPECIALTY STORES
CCC_10000064_4,15/10/2021,Parks & Green Spaces,AMZNMKTPLACE AMAZON.CO.UK,169.79,Clothing & Uniforms,5999,MISCELLANEOUS & SPECIALTY STORES
CCC_10000066_3,15/10/2021,Parks & Green Spaces,CHELMSFORD MASTER LOCK CHELMSFORD,29.98,Grounds Maintenance Materials,1799,SPECIAL TRADE CONTRACTORS
CCC_10000088_5,15/10/2021,Parks & Green Spaces,TESCO-STORES 6724 CHELMSFORD,1.1,General Expense,5411,GROCERY STORES OR SUPERMARKETS
CCC_10000136_4,15/10/2021,Digital Services,123 REG LTD 03454502310,71.88,Publications,5968,CONTINUITY/SUBSCRIPTION MERCHANT
CCC_10000240_3,15/10/2021,Leisure & Heritage Services,SPOTIFY UK LONDON,9.99,General Expense,5815," DIGITAL GOODS MEDIA: BOOKS, MOVIES, MUSIC "
CCC_10000064_3,17/10/2021,Parks & Green Spaces,AMZNMKTPLACE AMAZON.CO.UK,32.98,New Equipment,5999,MISCELLANEOUS & SPECIALTY STORES
CCC_10000695_11,17/10/2021,Building Services,AMAZON.CO.UK DK3HT7WR5 AMAZON.CO.UK,22.52,General Expense,5969,DIRECT MARKETERS (NEC)
CCC_10000066_2,18/10/2021,Parks & Green Spaces,SCREWFIX DIR LTD CHELMFOR1867,33.32,Grounds Maintenance Materials,5211,LUMBER AND BUILDING MATERIALS STORES
CCC_10000088_6,18/10/2021,Parks & Green Spaces,CHANDLER MATERIALS CHELMSFORD,252.58,General Expense,5211,LUMBER AND BUILDING MATERIALS STORES
CCC_10000088_7,18/10/2021,Parks & Green Spaces,B & Q 1188 CHELMSFORD,7.33,General Expense,5200,HOME SUPPLY WAREHOUSE STORES
CCC_10000091_5,18/10/2021,Parks & Green Spaces,AMZNMKTPLACE AMAZON.CO.UK,31.3,Grounds Maintenance Materials,5999,MISCELLANEOUS & SPECIALTY STORES
CCC_10000091_6,18/10/2021,Parks & Green Spaces,DVLA VEHICLE TAX 0300 1234321,231.25,Vehicle Tax,9311,TAX PAYMENTS
CCC_10000695_12,18/10/2021,Building Services,TESCO STORES 5408 CHELMSFORD,5.4,General Expense,5411,GROCERY STORES OR SUPERMARKETS
CCC_10000695_13,18/10/2021,Building Services,WWW.NISBETS.COM 0845 1110281,9.42,General Expense,5964,CATALOG MERCHANT
CCC_10000721_4,18/10/2021,Marketing & Communications Team,SCREWFIX DIRECT YEOVIL,70.82,New Equipment,5211,LUMBER AND BUILDING MATERIALS STORES
CCC_10000746_8,18/10/2021,"Museums, Theatres & Cultural Services",WWW.TOTALMERCHANDISE COLCHESTER CO,178.33,General Expense,5399,GENERAL MERCHANDISE OR CONVENIENCE FOOD STORES
CCC_10000064_2,19/10/2021,Parks & Green Spaces,AMZNMKTPLACE AMAZON.CO AMAZON.CO.UK,14.65,New Equipment,5999,MISCELLANEOUS & SPECIALTY STORES
CCC_10000066_1,19/10/2021,Parks & Green Spaces,AMZNMKTPLACE AMAZON.CO AMAZON.CO.UK,86.53,New Equipment,5999,MISCELLANEOUS & SPECIALTY STORES
CCC_10000078_9,19/10/2021,Parks & Green Spaces,DESIGN PRINT BANNER LT LONDON,-32.64,General Expense,5712," FURNITURE, HOME FURNISHINGS & EQUIP STORES EXCL APPLIANCES "
CCC_10000088_8,19/10/2021,Parks & Green Spaces,HOMEBASE LTD CHELMSFORD,49.22,General Expense,5200,HOME SUPPLY WAREHOUSE STORES
CCC_10000138_1,19/10/2021,Marketing & Communications Team,PRINT MARKETPLACE 40 2802345,124.04,Printing & Stationary,7338," PRINT SHOPS, QUICK COPY SERVICES OR REPRODUCTION SERVICES "
CCC_10000168_1,19/10/2021,Marketing & Communications Team,WWW URBANPRINTING CO U SOUTHEND-ON-S,406,Printing & Stationary,2741,MISCELLANEOUS PUBLISHING AND PRINTING
CCC_10000175_8,19/10/2021,Public Health & Protection Services,ESSEX COUNTY COUNCI EC CHELMSFORD,11,Printing & Stationary,9399,GOVERNMENT SERVICES (NEC) OR FIRE DEPARTMENTS
CCC_10000721_5,19/10/2021,Marketing & Communications Team,WORDPRESS HJUAPUZCGM DUBLIN,10,General Expense,5734,COMPUTER SOFTWARE STORES
CCC_10000073_2,20/10/2021,Parks & Green Spaces,TRAVIS PERKINS NORTHAMPTON,17.32,Grounds Maintenance Materials,5211,LUMBER AND BUILDING MATERIALS STORES
CCC_10000073_3,20/10/2021,Parks & Green Spaces,D L TOOLS BRAINTREE,31.72,Grounds Maintenance Materials,5072," HARDWARE, PLUMBING, HEATING EQUIPMENT AND SUPPLIES "
CCC_10000073_4,20/10/2021,Parks & Green Spaces,CHANDLER MATERIALS CHELMSFORD,10.8,Grounds Maintenance Materials,5211,LUMBER AND BUILDING MATERIALS STORES
CCC_10000088_9,20/10/2021,Parks & Green Spaces,T&M B2C ECOMM WWW.THOMPSON-,25.77,General Expense,5399,GENERAL MERCHANDISE OR CONVENIENCE FOOD STORES
CCC_10000695_14,20/10/2021,Building Services,TESCO-STORES 6724 CHELMSFORD,24.4,General Expense,5411,GROCERY STORES OR SUPERMARKETS
CCC_10000062_1,21/10/2021,Parks & Green Spaces,BISON SECURITY POSTS HORNCHURCH,1058,Grounds Maintenance Materials,7399,BUSINESS SERVICES (NEC)
CCC_10000064_1,21/10/2021,Parks & Green Spaces,AMAZON.CO.UK S49T518Q5 AMAZON.CO.UK,69.6,New Equipment,5969,DIRECT MARKETERS (NEC)
CCC_10000695_15,21/10/2021,Building Services,TESCO STORES 5408 CHELMSFORD,1.3,General Expense,5411,GROCERY STORES OR SUPERMARKETS
CCC_10000073_5,22/10/2021,Parks & Green Spaces,OAKLEY TURF FARM HARWICH,590.67,Grounds Maintenance Materials,5261,GARDEN AND LAWN SUPPLY STORES OR NURSERIES
CCC_10000088_10,23/10/2021,Parks & Green Spaces,GIBSONS CHELMSFORD,0.82,General Expense,5411,GROCERY STORES OR SUPERMARKETS
CCC_10000073_6,25/10/2021,Parks & Green Spaces,AMZNMKTPLACE AMAZON.CO.UK,12.49,Grounds Maintenance Materials,5999,MISCELLANEOUS & SPECIALTY STORES
CCC_10000088_11,25/10/2021,Parks & Green Spaces,TESCO-STORES 6724 CHELMSFORD,0.92,General Expense,5411,GROCERY STORES OR SUPERMARKETS
CCC_10000088_12,25/10/2021,Parks & Green Spaces,ASDA SUPERSTORE CHELMSFORD,27.6,General Expense,5411,GROCERY STORES OR SUPERMARKETS
CCC_10000091_4,25/10/2021,Parks & Green Spaces,D. BYFORD & SONS COLCHESTER CO,107,Grounds Maintenance Materials,5193," FLORIST SUPPLIES, NURSERY STOCK AND FLOWERS "
CCC_10000230_1,25/10/2021,Leisure & Heritage Services,VIKING UK LEICESTER,86.55,Printing & Stationary,5111," STATIONERY, OFFICE SUPPLIES, PRINTING AND WRITING PAPER "
CCC_10000066_6,26/10/2021,Parks & Green Spaces,AMZNMKTPLACE AMAZON.CO.UK,29.13,Printing & Stationary,5999,MISCELLANEOUS & SPECIALTY STORES
CCC_10000088_13,26/10/2021,Parks & Green Spaces,SEEDPARADE HOUNSLOW,22.17,General Expense,5261,GARDEN AND LAWN SUPPLY STORES OR NURSERIES
CCC_10000110_1,26/10/2021,Leisure & Heritage Services,FINDEL EDUCATION HYDE,314.97,New Equipment,5969,DIRECT MARKETERS (NEC)
CCC_10000111_4,26/10/2021,Operational Services,AMZNMKTPLACE AMAZON.CO.UK,10.81,Printing & Stationary,5999,MISCELLANEOUS & SPECIALTY STORES
CCC_10000070_1,27/10/2021,Parks & Green Spaces,BONMARCHE WAKEFIELD,103.75,Clothing & Uniforms,5621,WOMEN'S READY-TO-WEAR STORES
CCC_10000070_2,27/10/2021,Parks & Green Spaces,AMZNMKTPLACE AMAZON.CO.UK,9.22,Printing & Stationary,5999,MISCELLANEOUS & SPECIALTY STORES
CCC_10000103_1,27/10/2021,Development Management,AMZNMKTPLACE AMAZON.CO.UK,5.24,Printing & Stationary,5999,MISCELLANEOUS & SPECIALTY STORES
CCC_10000162_1,27/10/2021,Corporate Property Services,PROCONFERENCES.COM 01932 752685,130.8,Training Expenses,8220," UNIVERSITIES, COLLEGES, SR COLLEGES OR PROFESSIONAL SCHOOLS "
CCC_10000194_1,27/10/2021,Spatial Planning,AMZNMKTPLACE AMAZON.CO.UK,124.92,New Equipment,5999,MISCELLANEOUS & SPECIALTY STORES
CCC_10000194_2,27/10/2021,Spatial Planning,AMZNMKTPLACE AMAZON.CO.UK,70.06,New Equipment,5999,MISCELLANEOUS & SPECIALTY STORES
CCC_10000238_4,27/10/2021,South Essex Parking Partnership,HALFORDS 0803 RAYLEIGH,10,Vehicle Repairs,5940,BICYCLE SHOPS -- SALES AND SERVICE
CCC_10000077_3,28/10/2021,Parks & Green Spaces,WORKWEAR EXPRESS DURHAM,131.32,Clothing & Uniforms,5137," MEN'S, WOMEN'S AND CHILDREN'S UNIFORMS "
CCC_10000107_1,28/10/2021,Operational Services,FACEBK CUFDW8BRM2 FB.ME/ADS,216.15,Advertising,7311,ADVERTISING SERVICES
CCC_10000111_3,28/10/2021,Operational Services,10TO8.COM CAMBRIDGE,50,New Equipment,5817,DIGITAL GOODS: APPLICATIONS (EXCLUDES GAMES)
CCC_10000175_7,28/10/2021,Public Health & Protection Services,AMZNMKTPLACE AMAZON.CO AMAZON.CO.UK,11.66,New Equipment,5999,MISCELLANEOUS & SPECIALTY STORES
CCC_10000360_12,30/10/2021,"Museums, Theatres & Cultural Services",WWW.ACSCUSTOM.COM INTERNET,124.17,New Equipment,5975," HEARING AIDS -- SALES, SERVICE AND SUPPLY STORES "
CCC_10000721_6,30/10/2021,Marketing & Communications Team,FACEBK LVAA27FL92 FB.ME/ADS,200,Advertising,7311,ADVERTISING SERVICES
CCC_10000721_7,31/10/2021,Marketing & Communications Team,FACEBK E4T2L8XK92 FB.ME/ADS,0.82,Advertising,7311,ADVERTISING SERVICES
CCC_10000089_1,01/11/2021,Parks & Green Spaces,B & Q 1188 CHELMSFORD,121.35,General Expense,5200,HOME SUPPLY WAREHOUSE STORES
CCC_10000109_1,01/11/2021,"Procurement, Risk and Insurance",WWW.CIPS.ORG 0845 8801188,137,Employee Subscriptions,8699,MEMBERSHIP ORGANIZATIONS NOT ELSEWHERE CLASSIFIED
CCC_10000131_2,01/11/2021,Marketing & Communications Team,GOOGLE  ADS9290904130 DUBLIN,98.68,Advertising,7311,ADVERTISING SERVICES
CCC_10000136_3,01/11/2021,Digital Services,123 REG LTD 03454502310,15.99,Publications,5968,CONTINUITY/SUBSCRIPTION MERCHANT
CCC_10000175_6,01/11/2021,Public Health & Protection Services,ESSEX COUNTY COUNCI EC CHELMSFORD,11,Printing & Stationary,9399,GOVERNMENT SERVICES (NEC) OR FIRE DEPARTMENTS
CCC_10000274_10,01/11/2021,Parks & Green Spaces,ABERCORN PLANT AND GAR ESSEX,7.5,Grounds Maintenance Materials,5261,GARDEN AND LAWN SUPPLY STORES OR NURSERIES
CCC_10000360_11,01/11/2021,"Museums, Theatres & Cultural Services",AMZNMKTPLACE AMAZON.CO AMAZON.CO.UK,63.13,New Equipment,5999,MISCELLANEOUS & SPECIALTY STORES
CCC_10000154_1,02/11/2021,Parks & Green Spaces,OAKLEY TURF FARM HARWICH,590.67,Grounds Maintenance Materials,5261,GARDEN AND LAWN SUPPLY STORES OR NURSERIES
CCC_10000238_5,02/11/2021,South Essex Parking Partnership,EBAY COMMERCE UK LTD LONDON,4.99,Printing & Stationary,5311,DEPARTMENT STORES
CCC_10000274_9,02/11/2021,Parks & Green Spaces,D. BYFORD & SONS COLCHESTER CO,93.24,Grounds Maintenance Materials,5193," FLORIST SUPPLIES, NURSERY STOCK AND FLOWERS "
CCC_10000077_2,03/11/2021,Parks & Green Spaces,AMZNMKTPLACE AMAZON.CO AMAZON.CO.UK,18.22,Printing & Stationary,5999,MISCELLANEOUS & SPECIALTY STORES
CCC_10000086_2,03/11/2021,Parks & Green Spaces,CHANDLER MATERIALS CHELMSFORD,30.52,Grounds Maintenance Materials,5211,LUMBER AND BUILDING MATERIALS STORES
CCC_10000089_2,03/11/2021,Parks & Green Spaces,TESCO-STORES 6724 CHELMSFORD,1,General Expense,5411,GROCERY STORES OR SUPERMARKETS
CCC_10000175_5,03/11/2021,Public Health & Protection Services,ACT NOW TRAINING LIMIT DEWSBURY,99,Training Expenses,8249,VOCATIONAL OR TRADE SCHOOLS
CCC_10000205_2,03/11/2021,Revenue and Benefit Services,SOUTHEND COUNTY WWW.JUCTIC.GO,1253,General Expense,9222,FINES
CCC_10000696_2,03/11/2021,Building Services,AMZNMKTPLACE AMAZON.CO.UK,38.99,General Expense,5999,MISCELLANEOUS & SPECIALTY STORES
CCC_10000696_3,03/11/2021,Building Services,TESCO STORES 5408 CHELMSFORD,4.5,General Expense,5411,GROCERY STORES OR SUPERMARKETS
CCC_10000696_4,03/11/2021,Building Services,AMZNMKTPLACE AMAZON.CO.UK,16.66,General Expense,5999,MISCELLANEOUS & SPECIALTY STORES
CCC_10000696_5,03/11/2021,Building Services,AMZNMKTPLACE AMAZON.CO.UK,5.82,General Expense,5999,MISCELLANEOUS & SPECIALTY STORES
CCC_10000722_1,03/11/2021,Marketing & Communications Team,AMZNMKTPLACE AMAZON.CO.UK,49.13,New Equipment,5999,MISCELLANEOUS & SPECIALTY STORES
CCC_10000077_1,04/11/2021,Parks & Green Spaces,AMZNMKTPLACE AMAZON.CO.UK,23.32,Grounds Maintenance Materials,5999,MISCELLANEOUS & SPECIALTY STORES
CCC_10000153_1,04/11/2021,Human Resources,BACKHOUSE SOLICITORS L CHELMSFORD,500,General Expense,8111,ATTORNEYS OR LEGAL SERVICES
CCC_10000153_2,04/11/2021,Human Resources,KEW LAW LLP COLCHESTER,500,General Expense,8111,ATTORNEYS OR LEGAL SERVICES
CCC_10000154_2,04/11/2021,Parks & Green Spaces,SCREWFIX DIRECT YEOVIL,24.63,Grounds Maintenance Materials,5211,LUMBER AND BUILDING MATERIALS STORES
CCC_10000172_3,04/11/2021,Development Management,HONEY BROTHERS LTD GUILDFORD,121.9,New Equipment,5072," HARDWARE, PLUMBING, HEATING EQUIPMENT AND SUPPLIES "
CCC_10000237_4,04/11/2021,Leisure & Heritage Services,BATTERYSTATION.CO.UK BRADFORD BD1,21.32,General Expense,5999,MISCELLANEOUS & SPECIALTY STORES
CCC_10000237_5,04/11/2021,Leisure & Heritage Services,TESCO STORES 2327 CHELMSFORD 1,11.5,General Expense,5411,GROCERY STORES OR SUPERMARKETS
CCC_10000324_6,04/11/2021,Leisure & Heritage Services,VIKING UK LEICESTER,70.8,Printing & Stationary,5111," STATIONERY, OFFICE SUPPLIES, PRINTING AND WRITING PAPER "
CCC_10000089_3,05/11/2021,Parks & Green Spaces,T&M B2C ECOMM WWW.THOMPSON-,23.31,General Expense,5399,GENERAL MERCHANDISE OR CONVENIENCE FOOD STORES
CCC_10000098_5,05/11/2021,Public Health & Protection Services,GREATER ANGLIA 4278,27.55,Public Transport,4112,PASSENGER RAILWAYS
CCC_10000154_3,05/11/2021,Parks & Green Spaces,AMZNMKTPLACE AMAZON.CO.UK,21.65,Grounds Maintenance Materials,5999,MISCELLANEOUS & SPECIALTY STORES
CCC_10000165_1,05/11/2021,Public Health & Protection Services,FAST SMS NOTTINGHAM,118.8,General Expense,7399,BUSINESS SERVICES (NEC)
CCC_10000175_4,05/11/2021,Public Health & Protection Services,ESSEX COUNTY COUNCI EC CHELMSFORD,11,Printing & Stationary,9399,GOVERNMENT SERVICES (NEC) OR FIRE DEPARTMENTS
CCC_10000722_2,07/11/2021,Marketing & Communications Team,FACEBK LHKNR87L92 FB.ME/ADS,200,Advertising,7311,ADVERTISING SERVICES
CCC_10000089_4,08/11/2021,Parks & Green Spaces,ASDA SUPERSTORE CHELMSFORD,19.41,General Expense,5411,GROCERY STORES OR SUPERMARKETS
CCC_10000089_5,08/11/2021,Parks & Green Spaces,SCREWFIX DIR LTD CHELMFOR1066,18.32,General Expense,5211,LUMBER AND BUILDING MATERIALS STORES
CCC_10000227_1,08/11/2021,Marketing & Communications Team,LOCKSTATION BRAINTREE,14.29,New Equipment,5251,HARDWARE STORES
CCC_10000078_2,09/11/2021,Parks & Green Spaces,GRATECH 4X4 MALDON,482.5,Vehicle Repairs,7538,AUTOMOTIVE SERVICE SHOPS (NON-DEALER)
CCC_10000089_7,09/11/2021,Parks & Green Spaces,CHANDLER MATERIALS CHELMSFORD,31.68,General Expense,5211,LUMBER AND BUILDING MATERIALS STORES
CCC_10000159_2,09/11/2021,"Procurement, Risk and Insurance",WWW.CIPS.ORG 0845 8801188,206,Employee Subscriptions,8699,MEMBERSHIP ORGANIZATIONS NOT ELSEWHERE CLASSIFIED
CCC_10000175_3,09/11/2021,Public Health & Protection Services,ESSEX COUNTY COUNCI EC CHELMSFORD,11,Printing & Stationary,9399,GOVERNMENT SERVICES (NEC) OR FIRE DEPARTMENTS
CCC_10000238_12,09/11/2021,South Essex Parking Partnership,AMZNMKTPLACE AMAZON.CO.UK,95.31,Printing & Stationary,5999,MISCELLANEOUS & SPECIALTY STORES
CCC_10000238_6,09/11/2021,South Essex Parking Partnership,SKECHERS USA LTD 01707624772,55.79,Clothing & Uniforms,5661,SHOE STORES
CCC_10000238_7,09/11/2021,South Essex Parking Partnership,SAINSBURYS S/MKTS EAST MAYNE,7.7,Printing & Stationary,5411,GROCERY STORES OR SUPERMARKETS
CCC_10000121_1,10/11/2021,Leisure & Heritage Services,AMZNMKTPLACE AMAZON.CO AMAZON.CO.UK,19.98,New Equipment,5999,MISCELLANEOUS & SPECIALTY STORES
CCC_10000154_4,10/11/2021,Parks & Green Spaces,RS COMPONENTS 08457 201201,236.9,Grounds Maintenance Materials,5065,ELECTRICAL PARTS AND EQUIPMENT
CCC_10000154_5,10/11/2021,Parks & Green Spaces,HOMEBASE LTD CHELMSFORD,11.62,Grounds Maintenance Materials,5200,HOME SUPPLY WAREHOUSE STORES
CCC_10000172_2,10/11/2021,Development Management,HONEY BROTHERS LTD GUILDFORD,-21.95,New Equipment,5072," HARDWARE, PLUMBING, HEATING EQUIPMENT AND SUPPLIES "
CCC_10000193_8,10/11/2021,South Essex Parking Partnership,WILKO RETAIL LIMITED BRENTWOOD,5,General Expense,5399,GENERAL MERCHANDISE OR CONVENIENCE FOOD STORES
CCC_10000196_5,10/11/2021,Public Health & Protection Services,W A PRODUCTS UK 0870 1160999,76.2,New Equipment,5099,DURABLE GOODS (NEC)
CCC_10000238_10,10/11/2021,South Essex Parking Partnership,ARCO LTD BASILDON,7.18,Clothing & Uniforms,5085,INDUSTRIAL SUPPLIES (NEC)
CCC_10000238_11,10/11/2021,South Essex Parking Partnership,CAFFE NERO 317 BRENTWO BRENTWOOD,9.8,General Expense,5814,FAST FOOD RESTAURANTS
CCC_10000696_6,10/11/2021,Building Services,SAINSBURYS.CO.UK 0800 328 1700,55.6,General Expense,5411,GROCERY STORES OR SUPERMARKETS
CCC_10000078_3,11/11/2021,Parks & Green Spaces,WWW.TUDORENVIRONMENTAL COVENTRY CV3,282.06,Grounds Maintenance Materials,5261,GARDEN AND LAWN SUPPLY STORES OR NURSERIES
CCC_10000086_1,11/11/2021,Parks & Green Spaces,SCREWFIX DIRECT YEOVIL,45.82,New Equipment,5211,LUMBER AND BUILDING MATERIALS STORES
CCC_10000089_6,11/11/2021,Parks & Green Spaces,TESCO-STORES 6724 CHELMSFORD,1,General Expense,5411,GROCERY STORES OR SUPERMARKETS
CCC_10000089_8,11/11/2021,Parks & Green Spaces,ASDA SUPERSTORE S WOODHAM FER,10.17,General Expense,5411,GROCERY STORES OR SUPERMARKETS
CCC_10000089_9,11/11/2021,Parks & Green Spaces,ASDA SUPERSTORE S WOODHAM FER,2.08,General Expense,5411,GROCERY STORES OR SUPERMARKETS
CCC_10000140_4,11/11/2021,Parking & Highways Operations,AMZNMKTPLACE AMAZON.CO.UK,11.25,Printing & Stationary,5999,MISCELLANEOUS & SPECIALTY STORES
CCC_10000237_2,11/11/2021,Leisure & Heritage Services,TESCO STORES 2327 CHELMSFORD 1,8.58,General Expense,5411,GROCERY STORES OR SUPERMARKETS
CCC_10000237_3,11/11/2021,Leisure & Heritage Services,WH SMITH CHELMSFORD,16.65,General Expense,5994,NEWS DEALERS AND NEWSSTANDS
CCC_10000324_5,11/11/2021,Leisure & Heritage Services,WWW.SEERSMEDICAL.C 01728 861590,170,New Equipment,5712," FURNITURE, HOME FURNISHINGS & EQUIP STORES EXCL APPLIANCES "
CCC_10000667_1,11/11/2021,Leisure & Heritage Services,WF EDUCATION GROUP LTD SHREWSBURY,69.95,New Equipment,5047," MEDICAL, DENTAL, OPHTHALMIC AND HOSPITAL EQUIP "
CCC_10000746_7,11/11/2021,"Museums, Theatres & Cultural Services",PRINT MARKETPLACE 40 2802345,156.45,Printing & Stationary,7338," PRINT SHOPS, QUICK COPY SERVICES OR REPRODUCTION SERVICES "
CCC_10000140_3,12/11/2021,Parking & Highways Operations,AMAZON.CO.UK 017FU9PO5 AMAZON.CO.UK,12.49,Printing & Stationary,5969,DIRECT MARKETERS (NEC)
CCC_10000193_4,12/11/2021,South Essex Parking Partnership,POUNDSTRETCHER CHELMSFORD,4.99,General Expense,5331,VARIETY STORES
CCC_10000193_5,12/11/2021,South Essex Parking Partnership,STARBUCKS CANVEY ISLAN ESSEX,23.75,General Expense,5814,FAST FOOD RESTAURANTS
CCC_10000193_6,12/11/2021,South Essex Parking Partnership,MOBILE TECHNICIANS CHELMSFORD,60,New Equipment,7622," RADIO, STEREO OR TELEVISION REPAIR SHOPS "
CCC_10000193_7,12/11/2021,South Essex Parking Partnership,DEBS CARDS BELLMEAD,5.78,Printing & Stationary,5947," CARD, GIFT, NOVELTY OR SOUVENIR SHOPS "
CCC_10000238_9,12/11/2021,South Essex Parking Partnership,STARBUCKS CANVEY ISLAN ESSEX,9.8,General Expense,5814,FAST FOOD RESTAURANTS
CCC_10000324_4,12/11/2021,Leisure & Heritage Services,WWW.BRITISH-GYMNASTICS INTERNET,39.14,New Equipment,5399,GENERAL MERCHANDISE OR CONVENIENCE FOOD STORES
CCC_10000722_3,12/11/2021,Marketing & Communications Team,FACEBK  DYXZS6FY72 FB.ME/ADS,20,Advertising,7311,ADVERTISING SERVICES
CCC_10000746_6,12/11/2021,"Museums, Theatres & Cultural Services",AMZNMKTPLACE AMAZON.CO.UK,77.07,General Expense,5999,MISCELLANEOUS & SPECIALTY STORES
CCC_10000140_2,13/11/2021,Parking & Highways Operations,AMAZON.CO.UK JR3LN0IM5 AMAZON.CO.UK,52.37,Printing & Stationary,5969,DIRECT MARKETERS (NEC)
CCC_10000180_4,13/11/2021,"Museums, Theatres & Cultural Services",PAYPAL  STAGE DEPOT 35314369001,12.25,General Expense,5946,CAMERA AND/OR PHOTOGRAPHIC SUPPLY STORES
CCC_10000186_2,13/11/2021,Chief Executive's Office,AMZNMKTPLACE AMAZON.CO.UK,17.99,New Equipment,5999,MISCELLANEOUS & SPECIALTY STORES
CCC_10000154_6,14/11/2021,Parks & Green Spaces,AMZNMKTPLACE AMAZON.CO.UK,12.47,Grounds Maintenance Materials,5999,MISCELLANEOUS & SPECIALTY STORES
CCC_10000186_1,14/11/2021,Chief Executive's Office,AMZNMKTPLACE AMAZON.CO.UK,4.91,New Equipment,5999,MISCELLANEOUS & SPECIALTY STORES
CCC_10000305_1,14/11/2021,Leisure & Heritage Services,AMZNMKTPLACE AMAZON.CO.UK,18.32,New Equipment,5999,MISCELLANEOUS & SPECIALTY STORES
CCC_10000696_7,14/11/2021,Building Services,TESCO STORES 5408 CHELMSFORD,4.5,General Expense,5411,GROCERY STORES OR SUPERMARKETS
CCC_10000089_10,15/11/2021,Parks & Green Spaces,JAMES ODDY AND SON CHELMSFORD,38,General Expense,5211,LUMBER AND BUILDING MATERIALS STORES
CCC_10000097_5,15/11/2021,Digital Services,BROWSERSTACK.COM LEWES,3691.5,General Expense,7372," COMPUTER PROGRAMMING, SYSTEMS DESIGN OR DATA PROCESSING SERV "
CCC_10000104_1,15/11/2021,Development Management,AMZNMKTPLACE AMAZON.CO AMAZON.CO.UK,6.68,Printing & Stationary,5999,MISCELLANEOUS & SPECIALTY STORES
CCC_10000139_1,15/11/2021,Accountancy Services,WWW.EMAP.COM LONDON,306,Publications,2741,MISCELLANEOUS PUBLISHING AND PRINTING
CCC_10000149_3,15/11/2021,Leisure & Heritage Services,TRINITY MIRROR PUBLISH INTERNET,244.8,General Expense,7311,ADVERTISING SERVICES
CCC_10000154_7,15/11/2021,Parks & Green Spaces,AMZNMKTPLACE AMAZON.CO.UK,5.82,Grounds Maintenance Materials,5999,MISCELLANEOUS & SPECIALTY STORES
CCC_10000172_1,15/11/2021,Development Management,AMZN MKTP UK NQ2U34PQ5 800-279-6620,59.93,New Equipment,5942,BOOK STORES
CCC_10000185_2,15/11/2021,Chief Executive's Office,WWW.EMAP.COM LONDON,306,Employee Subscriptions,2741,MISCELLANEOUS PUBLISHING AND PRINTING
CCC_10000193_2,15/11/2021,South Essex Parking Partnership,ARCO LTD BASILDON,195.31,Clothing & Uniforms,5085,INDUSTRIAL SUPPLIES (NEC)
CCC_10000193_3,15/11/2021,South Essex Parking Partnership,ARCO LTD BASILDON,163.92,Clothing & Uniforms,5085,INDUSTRIAL SUPPLIES (NEC)
CCC_10000240_2,15/11/2021,Leisure & Heritage Services,SPOTIFY P17FA9BAA6 LONDON,9.99,General Expense,5815," DIGITAL GOODS MEDIA: BOOKS, MOVIES, MUSIC "
CCC_10000360_10,15/11/2021,"Museums, Theatres & Cultural Services",B & Q 1188 CHELMSFORD,27.28,General Expense,5200,HOME SUPPLY WAREHOUSE STORES
CCC_10000082_1,16/11/2021,Parks & Green Spaces,CHELMSFORD SAFETY SUPP CHELMSFORD,194.78,Clothing & Uniforms,5047," MEDICAL, DENTAL, OPHTHALMIC AND HOSPITAL EQUIP "
CCC_10000089_11,16/11/2021,Parks & Green Spaces,B & Q 1188 CHELMSFORD,105.24,General Expense,5200,HOME SUPPLY WAREHOUSE STORES
CCC_10000111_2,16/11/2021,Operational Services,AMZNMKTPLACE AMAZON.CO AMAZON.CO.UK,13.66,Printing & Stationary,5999,MISCELLANEOUS & SPECIALTY STORES
CCC_10000149_2,16/11/2021,Leisure & Heritage Services,SMART (GROUP) LTD LONDON  WC2E,250,Training Expenses,8999,PROFESSIONAL SERVICES (NEC)
CCC_10000154_8,16/11/2021,Parks & Green Spaces,CHANDLER MATERIALS CHELMSFORD,14.82,Grounds Maintenance Materials,5211,LUMBER AND BUILDING MATERIALS STORES
CCC_10000154_9,16/11/2021,Parks & Green Spaces,CHANDLER MATERIALS CHELMSFORD,51.84,Grounds Maintenance Materials,5211,LUMBER AND BUILDING MATERIALS STORES
CCC_10000360_9,16/11/2021,"Museums, Theatres & Cultural Services",AMAZON.CO.UK ZS83N1PM5 AMAZON.CO.UK,139.36,New Equipment,5969,DIRECT MARKETERS (NEC)
CCC_10000722_4,16/11/2021,Marketing & Communications Team,PAYPAL  PLUGINBUILD 35314369001,14.77,General Expense,5734,COMPUTER SOFTWARE STORES
CCC_10000089_12,17/11/2021,Parks & Green Spaces,TESCO-STORES 6724 CHELMSFORD,1,General Expense,5411,GROCERY STORES OR SUPERMARKETS
CCC_10000091_3,17/11/2021,Parks & Green Spaces,AMZNMKTPLACE AMAZON.CO.UK,28.97,General Expense,5999,MISCELLANEOUS & SPECIALTY STORES
CCC_10000105_1,17/11/2021,Spatial Planning,BLACKS OUTDOOR RETAIL BURY,82,Clothing & Uniforms,5655,RIDING OR SPORTS APPAREL STORES
CCC_10000105_2,17/11/2021,Spatial Planning,REGATTA MANCHESTER M4,84,Clothing & Uniforms,5651,FAMILY CLOTHING STORES
CCC_10000105_3,17/11/2021,Spatial Planning,SP   MUCKBOOTUK HARDWICKEGLO,125,Clothing & Uniforms,5139,COMMERCIAL FOOTWEAR
CCC_10000120_1,17/11/2021,Leisure & Heritage Services,AMAZON PRIME 344BM7Q75 AMZN.CO.UK/PM,7.99,New Equipment,5968,CONTINUITY/SUBSCRIPTION MERCHANT
CCC_10000125_8,17/11/2021,Marketing & Communications Team,BLUE SKY PRINTING LTD CHELMSFORD,45,Printing & Stationary,2741,MISCELLANEOUS PUBLISHING AND PRINTING
CCC_10000129_3,17/11/2021,Marketing & Communications Team,PRINT MARKETPLACE 40 2802345,74.31,Printing & Stationary,7338," PRINT SHOPS, QUICK COPY SERVICES OR REPRODUCTION SERVICES "
CCC_10000132_5,17/11/2021,"Museums, Theatres & Cultural Services",SCREWFIX DIRECT YEOVIL,4.99,New Equipment,5211,LUMBER AND BUILDING MATERIALS STORES
CCC_10000136_2,17/11/2021,Digital Services,TESCO STORES 5408 CHELMSFORD,7.88,Printing & Stationary,5411,GROCERY STORES OR SUPERMARKETS
CCC_10000151_3,17/11/2021,Marketing & Communications Team,SHEETPLASTICS WEYBRIDGE,120.3,New Equipment,5039,CONSTRUCTION MATERIALS (NEC)
CCC_10000154_10,17/11/2021,Parks & Green Spaces,F H BRUNDLE WORLDPAY-D INTERNET,225,Grounds Maintenance Materials,5211,LUMBER AND BUILDING MATERIALS STORES
CCC_10000159_1,17/11/2021,"Procurement, Risk and Insurance",TRAINLINE.COM LONDON,-9,Public Transport,4112,PASSENGER RAILWAYS
CCC_10000271_2,17/11/2021,Public Health & Protection Services,TRAINLINE.COM LONDON,35.77,Public Transport,4112,PASSENGER RAILWAYS
CCC_10000360_6,17/11/2021,"Museums, Theatres & Cultural Services",AMZNMKTPLACE AMAZON.CO AMAZON.CO.UK,21.62,New Equipment,5999,MISCELLANEOUS & SPECIALTY STORES
CCC_10000360_7,17/11/2021,"Museums, Theatres & Cultural Services",HOME FOODS GROCERY CHELMSFORD CM,0.99,General Expense,5411,GROCERY STORES OR SUPERMARKETS
CCC_10000360_8,17/11/2021,"Museums, Theatres & Cultural Services",WWW.THOMANN.DE BURGEBRACH,165,New Equipment,5733," MUSIC STORES, MUSICAL INSTRUMENTS, PIANOS, SHEET MUSIC "
CCC_10000090_1,18/11/2021,Parks & Green Spaces,AMZNMKTPLACE AMAZON.CO.UK,85.82,General Expense,5999,MISCELLANEOUS & SPECIALTY STORES
CCC_10000090_2,18/11/2021,Parks & Green Spaces,AMZNMKTPLACE AMAZON.CO.UK,9.98,General Expense,5999,MISCELLANEOUS & SPECIALTY STORES
CCC_10000091_1,18/11/2021,Parks & Green Spaces,AMZNMKTPLACE AMAZON.CO.UK,16.65,General Expense,5999,MISCELLANEOUS & SPECIALTY STORES
CCC_10000091_2,18/11/2021,Parks & Green Spaces,AMZNMKTPLACE AMAZON.CO.UK,4.41,General Expense,5999,MISCELLANEOUS & SPECIALTY STORES
CCC_10000098_4,18/11/2021,Public Health & Protection Services,GREATER ANGLIA 4278,27.55,Public Transport,4112,PASSENGER RAILWAYS
CCC_10000099_1,18/11/2021,Accountancy Services,WWW.CIPFA.ORG.UK LONDON  WC2N,343.5,Employee Subscriptions,8699,MEMBERSHIP ORGANIZATIONS NOT ELSEWHERE CLASSIFIED
CCC_10000132_2,18/11/2021,"Museums, Theatres & Cultural Services",TESCO STORE 2330 CHELMSFORD 2,1.8,General Expense,5411,GROCERY STORES OR SUPERMARKETS
CCC_10000132_3,18/11/2021,"Museums, Theatres & Cultural Services",AMZNMKTPLACE AMAZON.CO.UK,9.29,General Expense,5999,MISCELLANEOUS & SPECIALTY STORES
CCC_10000132_4,18/11/2021,"Museums, Theatres & Cultural Services",TESCO STORE 2330 CHELMSFORD 2,12,New Equipment,5411,GROCERY STORES OR SUPERMARKETS
CCC_10000163_1,18/11/2021,Development Management,AMAZON.CO.UK N261P2RU5 AMAZON.CO.UK,91.95,General Expense,5969,DIRECT MARKETERS (NEC)
CCC_10000193_1,18/11/2021,South Essex Parking Partnership,SHELL STAINES,78.78,Fuel,5541,GAS/SERVICE STATIONS WITH/WITHOUT ANCILLARY SERVICES
CCC_10000238_8,18/11/2021,South Essex Parking Partnership,AMZNMKTPLACE AMAZON.CO AMAZON.CO.UK,21.62,Printing & Stationary,5999,MISCELLANEOUS & SPECIALTY STORES
CCC_10000324_3,18/11/2021,Leisure & Heritage Services,WWW.DEFIBSHOP.CO.UK M'CHESTER M44,47.5,New Equipment,8249,VOCATIONAL OR TRADE SCHOOLS
CCC_10000335_1,18/11/2021,Leisure & Heritage Services,AMZ HYSAGTEK-DIRECT AMAZON.CO.UK,-18.32,New Equipment,5999,MISCELLANEOUS & SPECIALTY STORES
CCC_10000696_10,18/11/2021,Building Services,AMZNMKTPLACE AMAZON.CO AMAZON.CO.UK,10.3,General Expense,5999,MISCELLANEOUS & SPECIALTY STORES
CCC_10000696_8,18/11/2021,Building Services,AMAZON.CO.UK YF66O3O25 AMAZON.CO.UK,17.99,General Expense,5969,DIRECT MARKETERS (NEC)
CCC_10000696_9,18/11/2021,Building Services,TESCO STORES 5408 CHELMSFORD,6.3,General Expense,5411,GROCERY STORES OR SUPERMARKETS
CCC_10000098_3,19/11/2021,Public Health & Protection Services,GREATER ANGLIA 4278,27.55,Public Transport,4112,PASSENGER RAILWAYS
CCC_10000134_1,19/11/2021,Operational Services,SCREWFIX DIR LTD CHELMFOR1066,49.92,New Equipment,5211,LUMBER AND BUILDING MATERIALS STORES
CCC_10000148_1,19/11/2021,Leisure & Heritage Services,AMZNMKTPLACE AMAZON.CO.UK,15.98,General Expense,5999,MISCELLANEOUS & SPECIALTY STORES
CCC_10000154_11,19/11/2021,Parks & Green Spaces,SCREWFIX DIRECT YEOVIL,45.96,Grounds Maintenance Materials,5211,LUMBER AND BUILDING MATERIALS STORES
CCC_10000154_12,19/11/2021,Parks & Green Spaces,AMAZON.CO.UK 765OW5E45 AMAZON.CO.UK,9.12,Grounds Maintenance Materials,5969,DIRECT MARKETERS (NEC)
CCC_10000196_4,19/11/2021,Public Health & Protection Services,PAYPAL  WILDSERVICE 35314369001,75,New Equipment,5995," PET SHOPS, PET FOODS AND SUPPLIES STORES "
CCC_10000271_1,19/11/2021,Public Health & Protection Services,FLOWBIRD SMART CITY UK POOLE DORSET,7.2,Car Parking,7523,AUTOMOBILE PARKING OR PARKING LOTS
CCC_10000281_3,19/11/2021,Parks & Green Spaces,SCREWFIX DIRECT YEOVIL,54.99,Grounds Maintenance Materials,5211,LUMBER AND BUILDING MATERIALS STORES
CCC_10000696_11,19/11/2021,Building Services,WWW.OFCOM.ORG.UK LONDON SE1,75,General Expense,8699,MEMBERSHIP ORGANIZATIONS NOT ELSEWHERE CLASSIFIED
CCC_10000722_5,19/11/2021,Marketing & Communications Team,WORDPRESS T4TQ5FXEN0 DUBLIN,10,General Expense,5734,COMPUTER SOFTWARE STORES
CCC_10000722_6,19/11/2021,Marketing & Communications Team,FACEBK 3GAMH9XMP2 FB.ME/ADS,40,Advertising,7311,ADVERTISING SERVICES
CCC_10000180_3,20/11/2021,"Museums, Theatres & Cultural Services",GLOWTEC LTD BURY,29.98,General Expense,5198," PAINTS, VARNISHES AND SUPPLIES "
CCC_10000696_12,20/11/2021,Building Services,AMAZON.CO.UK 075FH3F75 AMAZON.CO.UK,35.36,General Expense,5969,DIRECT MARKETERS (NEC)
CCC_10000156_2,21/11/2021,Marketing & Communications Team,AMZNMKTPLACE AMAZON.CO AMAZON.CO.UK,143.16,General Expense,5999,MISCELLANEOUS & SPECIALTY STORES
CCC_10000156_3,21/11/2021,Marketing & Communications Team,AMZNMKTPLACE AMAZON.CO AMAZON.CO.UK,-0.38,General Expense,5999,MISCELLANEOUS & SPECIALTY STORES
CCC_10000156_4,21/11/2021,Marketing & Communications Team,AMZNMKTPLACE AMAZON.CO AMAZON.CO.UK,-0.39,General Expense,5999,MISCELLANEOUS & SPECIALTY STORES
CCC_10000345_11,21/11/2021,Parks & Green Spaces,CHRISTMAS WRAPPED UP DUNMOW,160,Grounds Maintenance Materials,5999,MISCELLANEOUS & SPECIALTY STORES
CCC_10000133_2,22/11/2021,Revenue and Benefit Services,AMAZON.CO.UK EF2MD9A45 AMAZON.CO.UK,15.59,Printing & Stationary,5969,DIRECT MARKETERS (NEC)
CCC_10000137_1,22/11/2021,Public Health & Protection Services,WWW.OFCOM.ORG.UK LONDON SE1,300,Employee Subscriptions,8699,MEMBERSHIP ORGANIZATIONS NOT ELSEWHERE CLASSIFIED
CCC_10000156_1,22/11/2021,Marketing & Communications Team,AMZNMKTPLACE AMAZON.CO AMAZON.CO.UK,-0.38,General Expense,5999,MISCELLANEOUS & SPECIALTY STORES
CCC_10000183_10,22/11/2021,South Essex Parking Partnership,ARCO LTD BASILDON,22.9,Clothing & Uniforms,5085,INDUSTRIAL SUPPLIES (NEC)
CCC_10000185_1,22/11/2021,Chief Executive's Office,WWW.CIPFA.ORG.UK LONDON  WC2N,286.25,Employee Subscriptions,8699,MEMBERSHIP ORGANIZATIONS NOT ELSEWHERE CLASSIFIED
CCC_10000237_1,22/11/2021,Leisure & Heritage Services,AMZNMKTPLACE AMAZON.CO AMAZON.CO.UK,6.24,General Expense,5999,MISCELLANEOUS & SPECIALTY STORES
CCC_10000247_1,22/11/2021,Leisure & Heritage Services,AMZNMKTPLACE AMAZON.CO.UK,235.7,General Expense,5999,MISCELLANEOUS & SPECIALTY STORES
CCC_10000094_1,23/11/2021,"Procurement, Risk and Insurance",THOMAS TELFORD LIMIT LONDON,313,Capital Items,8999,PROFESSIONAL SERVICES (NEC)
CCC_10000113_1,23/11/2021,Operational Services,SP   UK.YO-YODESK.COM SWINDON,166.62,New Equipment,5021,COMMERCIAL FURNITURE
CCC_10000119_1,23/11/2021,Leisure & Heritage Services,AMZNMKTPLACE AMAZON.CO.UK,98.36,New Equipment,5999,MISCELLANEOUS & SPECIALTY STORES
CCC_10000124_1,23/11/2021,Leisure & Heritage Services,AMZNMKTPLACE AMAZON.CO AMAZON.CO.UK,192.84,New Equipment,5999,MISCELLANEOUS & SPECIALTY STORES
CCC_10000126_4,23/11/2021,Parks & Green Spaces,AMAZON.CO.UK ZI2W01IJ5 AMAZON.CO.UK,15.48,Printing & Stationary,5969,DIRECT MARKETERS (NEC)
CCC_10000126_5,23/11/2021,Parks & Green Spaces,AMZNMKTPLACE AMAZON.CO AMAZON.CO.UK,9.23,Printing & Stationary,5999,MISCELLANEOUS & SPECIALTY STORES
CCC_10000128_1,23/11/2021,Marketing & Communications Team,PRINT MARKETPLACE 40 2802345,31.7,Printing & Stationary,7338," PRINT SHOPS, QUICK COPY SERVICES OR REPRODUCTION SERVICES "
CCC_10000133_1,23/11/2021,Revenue and Benefit Services,AMZNMKTPLACE AMAZON.CO AMAZON.CO.UK,6.66,Printing & Stationary,5999,MISCELLANEOUS & SPECIALTY STORES
CCC_10000137_2,23/11/2021,Public Health & Protection Services,AMZNMKTPLACE AMAZON.CO.UK,56.97,New Equipment,5999,MISCELLANEOUS & SPECIALTY STORES
CCC_10000152_4,23/11/2021,"Museums, Theatres & Cultural Services",AMZNMKTPLACE AMAZON.CO AMAZON.CO.UK,26.8,Publications,5999,MISCELLANEOUS & SPECIALTY STORES
CCC_10000154_13,23/11/2021,Parks & Green Spaces,RS COMPONENTS 08457 201201,212.76,Grounds Maintenance Materials,5065,ELECTRICAL PARTS AND EQUIPMENT
CCC_10000154_14,23/11/2021,Parks & Green Spaces,OAKLEY TURF FARM HARWICH,443,Grounds Maintenance Materials,5261,GARDEN AND LAWN SUPPLY STORES OR NURSERIES
CCC_10000154_15,23/11/2021,Parks & Green Spaces,AMZNMKTPLACE AMAZON.CO AMAZON.CO.UK,8.32,Grounds Maintenance Materials,5999,MISCELLANEOUS & SPECIALTY STORES
CCC_10000161_1,23/11/2021,Parks & Green Spaces,WARD SIGNS BRISTOL,90,Grounds Maintenance Materials,2741,MISCELLANEOUS PUBLISHING AND PRINTING
CCC_10000196_3,23/11/2021,Public Health & Protection Services,PAYPAL  WILDSERVICE 35314369001,-75,New Equipment,5995," PET SHOPS, PET FOODS AND SUPPLIES STORES "
CCC_10000360_3,23/11/2021,"Museums, Theatres & Cultural Services",AMZNMKTPLACE AMAZON.CO.UK,37.5,General Expense,5999,MISCELLANEOUS & SPECIALTY STORES
CCC_10000360_4,23/11/2021,"Museums, Theatres & Cultural Services",B & Q 1188 CHELMSFORD,15.17,General Expense,5200,HOME SUPPLY WAREHOUSE STORES
CCC_10000360_5,23/11/2021,"Museums, Theatres & Cultural Services",WWW.ITS.CO.UK HARLOW CM20,138.98,New Equipment,5251,HARDWARE STORES
CCC_10000696_13,23/11/2021,Building Services,TESCO STORES 5408 CHELMSFORD,4.5,General Expense,5411,GROCERY STORES OR SUPERMARKETS
CCC_10000722_7,23/11/2021,Marketing & Communications Team,WORDPRESS ZKHH5MHKUT DUBLIN,240,General Expense,5734,COMPUTER SOFTWARE STORES
CCC_10000132_1,24/11/2021,"Museums, Theatres & Cultural Services",TESCO STORE 2330 CHELMSFORD 2,0.89,General Expense,5411,GROCERY STORES OR SUPERMARKETS
CCC_10000135_1,24/11/2021,Accountancy Services,WWW.CIPFA.ORG.UK LONDON  WC2N,343.5,Employee Subscriptions,8699,MEMBERSHIP ORGANIZATIONS NOT ELSEWHERE CLASSIFIED
CCC_10000147_3,24/11/2021,Leisure & Heritage Services,THETRAINLINE.COM +443332022222,33.17,Public Transport,4112,PASSENGER RAILWAYS
CCC_10000154_16,24/11/2021,Parks & Green Spaces,MANUTAN UK LTD VERWOOD,6.05,Grounds Maintenance Materials,5943," STATIONERY STORES, OFFICE & SCHOOL SUPPLY STORES "
CCC_10000183_9,24/11/2021,South Essex Parking Partnership,SUMUP   ASHINGTON VALE ROCHFORD,28,General Expense,7210," CLEANING, LAUNDRY AND GARMENT SERVICES "
CCC_10000231_8,24/11/2021,Parks & Green Spaces,TESCO-STORES 6724 CHELMSFORD,1.2,General Expense,5411,GROCERY STORES OR SUPERMARKETS
CCC_10000503_2,24/11/2021,Housing Services,TOWER HAMLETS BC LONDON,11,General Expense,9399,GOVERNMENT SERVICES (NEC) OR FIRE DEPARTMENTS
CCC_10000086_5,25/11/2021,Parks & Green Spaces,COOPER KEYS CHELMSFORD CM,36,General Expense,5251,HARDWARE STORES
CCC_10000086_6,25/11/2021,Parks & Green Spaces,JAMES ODDY AND SON CHELMSFORD,68.4,Grounds Maintenance Materials,5211,LUMBER AND BUILDING MATERIALS STORES
CCC_10000086_7,25/11/2021,Parks & Green Spaces,TOOLSTATION LTD CHELMSFORD,34.37,Grounds Maintenance Materials,5211,LUMBER AND BUILDING MATERIALS STORES
CCC_10000097_3,25/11/2021,Digital Services,AMZNMKTPLACE AMAZON.CO.UK,8.74,General Expense,5999,MISCELLANEOUS & SPECIALTY STORES
CCC_10000097_4,25/11/2021,Digital Services,AMZNMKTPLACE AMAZON.CO.UK,8.73,General Expense,5999,MISCELLANEOUS & SPECIALTY STORES
CCC_10000098_2,25/11/2021,Public Health & Protection Services,GREATER ANGLIA 4278,27.55,Public Transport,4112,PASSENGER RAILWAYS
CCC_10000101_1,25/11/2021,Development Management,AMAZON.CO.UK F66TA0815 AMAZON.CO.UK,13.26,Printing & Stationary,5969,DIRECT MARKETERS (NEC)
CCC_10000118_1,25/11/2021,Leisure & Heritage Services,WWW.UKWRISTBANDS.COM INTERNET,167.97,New Equipment,5699,APPAREL AND ACCESSORY SHOPS -- MISCELLANEOUS
CCC_10000125_7,25/11/2021,Marketing & Communications Team,PAYPAL  NETMUMS LTD 35314369001,108,Advertising,8999,PROFESSIONAL SERVICES (NEC)
CCC_10000126_3,25/11/2021,Parks & Green Spaces,VISTAPRINT VENLO,59.67,Printing & Stationary,7399,BUSINESS SERVICES (NEC)
CCC_10000147_1,25/11/2021,Leisure & Heritage Services,ROTACLOUD YORK,58.8,General Expense,5734,COMPUTER SOFTWARE STORES
CCC_10000147_2,25/11/2021,Leisure & Heritage Services,SP   UK CHRISTMASWORLD BARNSLEY,95.93,New Equipment,5331,VARIETY STORES
CCC_10000152_3,25/11/2021,"Museums, Theatres & Cultural Services",AMZNMKTPLACE AMAZON.CO.UK,5.58,Publications,5999,MISCELLANEOUS & SPECIALTY STORES
CCC_10000175_2,25/11/2021,Public Health & Protection Services,ESSEX COUNTY COUNCI EC CHELMSFORD,11,Printing & Stationary,9399,GOVERNMENT SERVICES (NEC) OR FIRE DEPARTMENTS
CCC_10000196_2,25/11/2021,Public Health & Protection Services,PRINT MARKETPLACE 40 2802345,89.4,Printing & Stationary,7338," PRINT SHOPS, QUICK COPY SERVICES OR REPRODUCTION SERVICES "
CCC_10000197_1,25/11/2021,Digital Services,TSOHOST 02078552055,49.99,Publications,5968,CONTINUITY/SUBSCRIPTION MERCHANT
CCC_10000231_7,25/11/2021,Parks & Green Spaces,WORKWEAR EXPRESS DURHAM,366.62,General Expense,5137," MEN'S, WOMEN'S AND CHILDREN'S UNIFORMS "
CCC_10000249_1,25/11/2021,Leisure & Heritage Services,HOBBYCRAFT CHELMSFORD,28.3,General Expense,5970,CRAFT OR ARTIST'S SUPPLY SHOPS
CCC_10000274_8,25/11/2021,Parks & Green Spaces,D. BYFORD & SONS COLCHESTER CO,28.7,Grounds Maintenance Materials,5193," FLORIST SUPPLIES, NURSERY STOCK AND FLOWERS "
CCC_10000311_1,25/11/2021,Leisure & Heritage Services,J P LENNARD LTD RUGBY,79.76,New Equipment,5941,SPORTING GOODS STORES
CCC_10000312_1,25/11/2021,Leisure & Heritage Services,J P LENNARD LTD RUGBY,50,New Equipment,5941,SPORTING GOODS STORES
CCC_10000696_14,25/11/2021,Building Services,TESCO STORES 5408 CHELMSFORD,7.6,General Expense,5411,GROCERY STORES OR SUPERMARKETS
CCC_10000746_3,25/11/2021,"Museums, Theatres & Cultural Services",TESCO STORE 2330 CHELMSFORD 2,54.84,General Expense,5411,GROCERY STORES OR SUPERMARKETS
CCC_10000746_4,25/11/2021,"Museums, Theatres & Cultural Services",AMZNMKTPLACE AMAZON.CO AMAZON.CO.UK,9.96,General Expense,5999,MISCELLANEOUS & SPECIALTY STORES
CCC_10000746_5,25/11/2021,"Museums, Theatres & Cultural Services",MBS WHOLESALE LTD HARROW MIDDLE,98.13,General Expense,5046,COMMERCIAL EQUIPMENT (NEC)
CCC_10000093_1,26/11/2021,Street Care & Performance,AMZNMKTPLACE AMAZON.CO.UK,34.32,New Equipment,5999,MISCELLANEOUS & SPECIALTY STORES
CCC_10000093_2,26/11/2021,Street Care & Performance,J STUDMAN ELECTRICAL CHELMSFORD,20.83,New Equipment,7629,APPLIANCE OR ELECTRICAL REPAIR SHOPS
CCC_10000096_1,26/11/2021,Parks & Green Spaces,ALDI 5 776 CHELMSFORD,9.52,General Expense,5411,GROCERY STORES OR SUPERMARKETS
CCC_10000097_2,26/11/2021,Digital Services,AMZNMKTPLACE AMAZON.CO AMAZON.CO.UK,15.79,General Expense,5999,MISCELLANEOUS & SPECIALTY STORES
CCC_10000098_1,26/11/2021,Public Health & Protection Services,GREATER ANGLIA 4278,27.55,Public Transport,4112,PASSENGER RAILWAYS
CCC_10000115_1,26/11/2021,Leisure & Heritage Services,DVLA VEHICLE TAX 0300 1234321,277.5,Vehicle Tax,9311,TAX PAYMENTS
CCC_10000125_4,26/11/2021,Marketing & Communications Team,PAYPAL  LOUISE FORD 35314369001,166.67,Advertising,5641,CHILDREN'S AND INFANTS' WEAR STORES
CCC_10000125_5,26/11/2021,Marketing & Communications Team,PAYPAL  LOUISE FORD 35314369001,22.5,Advertising,5641,CHILDREN'S AND INFANTS' WEAR STORES
CCC_10000125_6,26/11/2021,Marketing & Communications Team,PAYPAL  LOUISE FORD 35314369001,66.67,Advertising,5641,CHILDREN'S AND INFANTS' WEAR STORES
CCC_10000146_11,26/11/2021,Leisure & Heritage Services,TESCO STORE 2330 CHELMSFORD 2,3.8,General Expense,5411,GROCERY STORES OR SUPERMARKETS
CCC_10000154_17,26/11/2021,Parks & Green Spaces,TRAVIS PERKINS NORTHAMPTON,51.96,Grounds Maintenance Materials,5211,LUMBER AND BUILDING MATERIALS STORES
CCC_10000176_2,26/11/2021,Leisure & Heritage Services,SCREWFIX DIRECT YEOVIL,44.47,Grounds Maintenance Materials,5211,LUMBER AND BUILDING MATERIALS STORES
CCC_10000180_1,26/11/2021,"Museums, Theatres & Cultural Services",B & Q 1188 CHELMSFORD,38.33,General Expense,5200,HOME SUPPLY WAREHOUSE STORES
CCC_10000180_2,26/11/2021,"Museums, Theatres & Cultural Services",TESCO STORES 5408 CHELMSFORD,8.78,General Expense,5411,GROCERY STORES OR SUPERMARKETS
CCC_10000183_8,26/11/2021,South Essex Parking Partnership,COSTCO WHOLESALE #101 THURROCK,3.1,General Expense,7278,BUYING OR SHOPPING SERVICES CLUBS
CCC_10000220_4,26/11/2021,"Museums, Theatres & Cultural Services",HOBBYCRAFT CHELMSFORD,22.25,Museum Exhibits,5970,CRAFT OR ARTIST'S SUPPLY SHOPS
CCC_10000221_1,26/11/2021,"Museums, Theatres & Cultural Services",WEPRINT.AVERY.CO.UK 10 CASTLEFORD,9.49,Printing & Stationary,2741,MISCELLANEOUS PUBLISHING AND PRINTING
CCC_10000229_1,26/11/2021,Customer Services,AMZNMKTPLACE AMAZON.CO.UK,21.1,Printing & Stationary,5999,MISCELLANEOUS & SPECIALTY STORES
CCC_10000246_18,26/11/2021,"Museums, Theatres & Cultural Services",WILKO RETAIL LIMITED CHELMSFORD,10,General Expense,5399,GENERAL MERCHANDISE OR CONVENIENCE FOOD STORES
CCC_10000248_2,26/11/2021,Development Management,B AND Q WOOD GREEN COLCHESTER,13.33,General Expense,5211,LUMBER AND BUILDING MATERIALS STORES
CCC_10000345_10,26/11/2021,Parks & Green Spaces,AMZNMKTPLACE AMAZON.CO.UK,17.28,Printing & Stationary,5999,MISCELLANEOUS & SPECIALTY STORES
CCC_10000125_3,27/11/2021,Marketing & Communications Team,CANVA  I03253-0711459 CAMDEN,21.92,Advertising,7221,PHOTOGRAPHIC STUDIOS
CCC_10000129_1,27/11/2021,Marketing & Communications Team,FACEBK HX92E8BKD2 FB.ME/ADS,40,Advertising,7311,ADVERTISING SERVICES
CCC_10000176_1,27/11/2021,Leisure & Heritage Services,TLC SOUTHERN CRAWLEY,35.19,Grounds Maintenance Materials,5722,APPLIANCE STORES (NEC) OR HOUSEHOLD APPLIANCE STORES
CCC_10000345_9,27/11/2021,Parks & Green Spaces,AMZNMKTPLACE AMAZON.CO.UK,10.18,Printing & Stationary,5999,MISCELLANEOUS & SPECIALTY STORES
CCC_10000111_1,28/11/2021,Operational Services,10TO8.COM CAMBRIDGE,50,New Equipment,5817,DIGITAL GOODS: APPLICATIONS (EXCLUDES GAMES)
CCC_10000125_2,28/11/2021,Marketing & Communications Team,FACEBK HPMQ683Z52 FB.ME/ADS,400,Advertising,7311,ADVERTISING SERVICES
CCC_10000126_1,28/11/2021,Parks & Green Spaces,AMZNMKTPLACE AMAZON.CO.UK,9.73,Printing & Stationary,5999,MISCELLANEOUS & SPECIALTY STORES
CCC_10000126_2,28/11/2021,Parks & Green Spaces,AMZNMKTPLACE AMAZON.CO.UK,21.02,Printing & Stationary,5999,MISCELLANEOUS & SPECIALTY STORES
CCC_10000220_3,28/11/2021,"Museums, Theatres & Cultural Services",LONGACRES GARDEN CENTR CHELMSFORD,4.15,Museum Exhibits,5261,GARDEN AND LAWN SUPPLY STORES OR NURSERIES
CCC_10000246_17,28/11/2021,"Museums, Theatres & Cultural Services",SCREWFIX DIRECT YEOVIL,13.32,New Equipment,5211,LUMBER AND BUILDING MATERIALS STORES
CCC_10000086_4,29/11/2021,Parks & Green Spaces,JAMES ODDY AND SON CHELMSFORD,374.4,Grounds Maintenance Materials,5211,LUMBER AND BUILDING MATERIALS STORES
CCC_10000096_2,29/11/2021,Parks & Green Spaces,ALDI CHELMSFORD,54.6,General Expense,5411,GROCERY STORES OR SUPERMARKETS
CCC_10000096_3,29/11/2021,Parks & Green Spaces,MARKS&SPENCER PLC SF CHLEMSFORD SF,4.15,General Expense,5411,GROCERY STORES OR SUPERMARKETS
CCC_10000097_1,29/11/2021,Digital Services,SLI DO BRATISLAVA,480,Employee Subscriptions,5734,COMPUTER SOFTWARE STORES
CCC_10000140_1,29/11/2021,Parking & Highways Operations,SCREWFIX DIRECT YEOVIL,33.32,Printing & Stationary,5211,LUMBER AND BUILDING MATERIALS STORES
CCC_10000146_10,29/11/2021,Leisure & Heritage Services,WWW.NISBETS.COM 0845 1110281,45.96,General Expense,5964,CATALOG MERCHANT
CCC_10000146_9,29/11/2021,Leisure & Heritage Services,TESCO STORE 2330 CHELMSFORD 2,21.25,General Expense,5411,GROCERY STORES OR SUPERMARKETS
CCC_10000154_18,29/11/2021,Parks & Green Spaces,WWW.FILCRIS.CO.UK CAMBRIDGE CB2,108.62,Grounds Maintenance Materials,5039,CONSTRUCTION MATERIALS (NEC)
CCC_10000154_19,29/11/2021,Parks & Green Spaces,AMZNMKTPLACE AMAZON.CO.UK,11.65,Grounds Maintenance Materials,5999,MISCELLANEOUS & SPECIALTY STORES
CCC_10000176_3,29/11/2021,Leisure & Heritage Services,SCREWFIX DIRECT YEOVIL,34.57,Grounds Maintenance Materials,5211,LUMBER AND BUILDING MATERIALS STORES
CCC_10000214_2,29/11/2021,"Museums, Theatres & Cultural Services",VISTAPRINT VENLO,25.92,Printing & Stationary,7399,BUSINESS SERVICES (NEC)
CCC_10000220_2,29/11/2021,"Museums, Theatres & Cultural Services",AMZNMKTPLACE AMAZON.CO.UK,16.65,Museum Exhibits,5999,MISCELLANEOUS & SPECIALTY STORES
CCC_10000274_7,29/11/2021,Parks & Green Spaces,TESCO STORE 2330 CHELMSFORD 2,42.92,Grounds Maintenance Materials,5411,GROCERY STORES OR SUPERMARKETS
CCC_10000448_4,29/11/2021,Operational Services,SQ  MONARCH SPRINGFIELD,55,General Expense,7230,BARBER OR BEAUTY SHOPS
CCC_10000618_1,29/11/2021,Leisure & Heritage Services,EBAY COMMERCE UK LTD LONDON,28.5,New Equipment,5311,DEPARTMENT STORES
CCC_10000631_1,29/11/2021,Leisure & Heritage Services,LITTLE FIELDS FARM LIM LEICESTER,20.54,New Equipment,5199,NON-DURABLE GOODS (NEC)
CCC_10000722_8,29/11/2021,Marketing & Communications Team,FACEBK 7Y9WBAFMP2 FB.ME/ADS,20,Advertising,7311,ADVERTISING SERVICES
CCC_10000086_3,30/11/2021,Parks & Green Spaces,JAMES ODDY AND SON CHELMSFORD,120,Grounds Maintenance Materials,5211,LUMBER AND BUILDING MATERIALS STORES
CCC_10000096_4,30/11/2021,Parks & Green Spaces,TESCO-STORES 6724 CHELMSFORD,1.45,General Expense,5411,GROCERY STORES OR SUPERMARKETS
CCC_10000096_5,30/11/2021,Parks & Green Spaces,TESCO-STORES 6724 CHELMSFORD,6.8,General Expense,5411,GROCERY STORES OR SUPERMARKETS
CCC_10000125_1,30/11/2021,Marketing & Communications Team,FACEBK 6L6P883Z52 FB.ME/ADS,130.21,Advertising,7311,ADVERTISING SERVICES
CCC_10000129_2,30/11/2021,Marketing & Communications Team,FACEBK  JGDDB9FLV2 FB.ME/ADS,13.5,Advertising,7311,ADVERTISING SERVICES
CCC_10000146_8,30/11/2021,Leisure & Heritage Services,TESCO STORE 2330 CHELMSFORD 2,17.4,General Expense,5411,GROCERY STORES OR SUPERMARKETS
CCC_10000151_1,30/11/2021,Marketing & Communications Team,FACEBK  PHHGD9P9K2 FB.ME/ADS,592.79,Advertising,7311,ADVERTISING SERVICES
CCC_10000151_2,30/11/2021,Marketing & Communications Team,SNAPPY SNAPS CHELMSFOR CHELMSFORD,47,Printing & Stationary,7395," PHOTOFINISHING LABORATORIES, PHOTO DEVELOPING "
CCC_10000160_3,30/11/2021,Corporate Property Services,PROCONFERENCES.COM 01932 752685,109,Training Expenses,8220," UNIVERSITIES, COLLEGES, SR COLLEGES OR PROFESSIONAL SCHOOLS "
CCC_10000170_5,30/11/2021,Operational Services,AMZNMKTPLACE AMAZON.CO.UK,10.98,New Equipment,5999,MISCELLANEOUS & SPECIALTY STORES
CCC_10000177_1,30/11/2021,Digital Services,AMZNMKTPLACE AMAZON.CO AMAZON.CO.UK,20.97,New Equipment,5999,MISCELLANEOUS & SPECIALTY STORES
CCC_10000183_7,30/11/2021,South Essex Parking Partnership,SUMUP   ZENITH MOTORS BARKING,90,General Expense,7210," CLEANING, LAUNDRY AND GARMENT SERVICES "
CCC_10000214_1,30/11/2021,"Museums, Theatres & Cultural Services",VISTAPRINT VENLO,-4.79,Printing & Stationary,7399,BUSINESS SERVICES (NEC)
CCC_10000274_6,30/11/2021,Parks & Green Spaces,WWW.THEWORKS.CO.UK 01213136000,67.29,Grounds Maintenance Materials,5310,DISCOUNT STORES
CCC_10000324_2,30/11/2021,Leisure & Heritage Services,NEWITTS.COM YORK,10.35,New Equipment,5941,SPORTING GOODS STORES
CCC_10000722_9,30/11/2021,Marketing & Communications Team,FACEBK Q6Z8H8PK92 FB.ME/ADS,118.08,Advertising,7311,ADVERTISING SERVICES
CCC_10000746_2,30/11/2021,"Museums, Theatres & Cultural Services",MBS WHOLESALE LTD HARROW MIDDLE,-27.47,General Expense,5046,COMMERCIAL EQUIPMENT (NEC)
CCC_10000131_1,01/12/2021,Marketing & Communications Team,GOOGLE  ADS9290904130 DUBLIN,1.98,Advertising,7311,ADVERTISING SERVICES
CCC_10000144_2,01/12/2021,Leisure & Heritage Services,AMZNMKTPLACE AMAZON.CO.UK,17.91,General Expense,5999,MISCELLANEOUS & SPECIALTY STORES
CCC_10000183_6,01/12/2021,South Essex Parking Partnership,SPORTSDIRECT 297 08443325297,24.99,Clothing & Uniforms,5941,SPORTING GOODS STORES
CCC_10000201_2,01/12/2021,Leisure & Heritage Services,ESSEX SUPPLIES (UK) LT SOUTHEND-ON-S,29.49,General Expense,2842," SPECIALTY CLEANING, POLISHING AND SANITATION PREPS "
CCC_10000215_2,01/12/2021,"Museums, Theatres & Cultural Services",AMZNMKTPLACE AMAZON.CO.UK,24.23,Printing & Stationary,5999,MISCELLANEOUS & SPECIALTY STORES
CCC_10000248_1,01/12/2021,Development Management,B AND Q WOOD GREEN COLCHESTER,16.25,General Expense,5211,LUMBER AND BUILDING MATERIALS STORES
CCC_10000263_2,01/12/2021,Housing Services,BRAINTREE DC BRAINTREE,260.88,General Expense,9399,GOVERNMENT SERVICES (NEC) OR FIRE DEPARTMENTS
CCC_10000272_5,01/12/2021,Public Health & Protection Services,THETRAINLINE.COM +443332022222,35.77,Public Transport,4112,PASSENGER RAILWAYS
CCC_10000283_1,01/12/2021,Operational Services,DVLA VEHICLE TAX 0300 1234321,202.5,Vehicle Tax,9311,TAX PAYMENTS
CCC_10000284_1,01/12/2021,Operational Services,DVLA VEHICLE TAX 0300 1234321,202.5,Vehicle Tax,9311,TAX PAYMENTS
CCC_10000345_14,01/12/2021,Parks & Green Spaces,TEFFONT BUSINESS SYSTE BRISTOL BS37,222,Printing & Stationary,7379," COMPUTER MAINTENANCE, REPAIR AND SERVICES "
CCC_10000616_1,01/12/2021,Leisure & Heritage Services,AMZNMKTPLACE AMAZON.CO.UK,24.16,New Equipment,5999,MISCELLANEOUS & SPECIALTY STORES
CCC_10000617_1,01/12/2021,Leisure & Heritage Services,ASPECT CPM (UK) LTD BEDALE,53.35,New Equipment,5691,MEN'S AND WOMEN'S CLOTHING STORES
CCC_10000697_1,01/12/2021,Building Services,TESCO STORES 5408 CHELMSFORD,9.71,General Expense,5411,GROCERY STORES OR SUPERMARKETS
CCC_10000095_1,02/12/2021,Human Resources,RICS SUBS UK CYBS COVENTRY,539,Training Expenses,8699,MEMBERSHIP ORGANIZATIONS NOT ELSEWHERE CLASSIFIED
CCC_10000095_2,02/12/2021,Human Resources,RICS SUBS UK CYBS COVENTRY,539,Training Expenses,8699,MEMBERSHIP ORGANIZATIONS NOT ELSEWHERE CLASSIFIED
CCC_10000095_3,02/12/2021,Human Resources,ROYAL TOWN PLANNING 02079299463,642,Training Expenses,8398,CHARITABLE OR SOCIAL SERVICES ORGANIZATIONS
CCC_10000095_4,02/12/2021,Human Resources,ROYAL TOWN PLANNING 02079299463,642,Training Expenses,8398,CHARITABLE OR SOCIAL SERVICES ORGANIZATIONS
CCC_10000100_1,02/12/2021,Development Management,AMZNMKTPLACE AMAZON.CO.UK,141.58,Printing & Stationary,5999,MISCELLANEOUS & SPECIALTY STORES
CCC_10000103_2,02/12/2021,Development Management,AMZ KONNEC AMAZON.CO.UK,-6.29,Printing & Stationary,5999,MISCELLANEOUS & SPECIALTY STORES
CCC_10000112_1,02/12/2021,Leisure & Heritage Services,AMZNMKTPLACE AMAZON.CO AMAZON.CO.UK,124.4,New Equipment,5999,MISCELLANEOUS & SPECIALTY STORES
CCC_10000114_1,02/12/2021,Leisure & Heritage Services,AMZNMKTPLACE AMAZON.CO AMAZON.CO.UK,97.98,New Equipment,5999,MISCELLANEOUS & SPECIALTY STORES
CCC_10000116_1,02/12/2021,Leisure & Heritage Services,AMZNMKTPLACE AMAZON.CO AMAZON.CO.UK,29.9,New Equipment,5999,MISCELLANEOUS & SPECIALTY STORES
CCC_10000117_1,02/12/2021,Leisure & Heritage Services,AMZNMKTPLACE AMAZON.CO AMAZON.CO.UK,25.98,New Equipment,5999,MISCELLANEOUS & SPECIALTY STORES
CCC_10000169_1,02/12/2021,Operational Services,FLAIR TRAINING BRAINTREE,1311.67,Training Expenses,8249,VOCATIONAL OR TRADE SCHOOLS
CCC_10000170_3,02/12/2021,Operational Services,B & Q 1188 CHELMSFORD,78.3,General Expense,5200,HOME SUPPLY WAREHOUSE STORES
CCC_10000170_4,02/12/2021,Operational Services,SCREWFIX DIRECT YEOVIL,9.21,General Expense,5211,LUMBER AND BUILDING MATERIALS STORES
CCC_10000183_5,02/12/2021,South Essex Parking Partnership,HALFORDS 0803 RAYLEIGH,70.44,New Equipment,5940,BICYCLE SHOPS -- SALES AND SERVICE
CCC_10000191_1,02/12/2021,Leisure & Heritage Services,AMZNMKTPLACE AMAZON.CO AMAZON.CO.UK,73.96,New Equipment,5999,MISCELLANEOUS & SPECIALTY STORES
CCC_10000192_1,02/12/2021,Leisure & Heritage Services,AMZNMKTPLACE AMAZON.CO AMAZON.CO.UK,29.95,New Equipment,5999,MISCELLANEOUS & SPECIALTY STORES
CCC_10000231_3,02/12/2021,Parks & Green Spaces,B & Q 1188 CHELMSFORD,57.85,General Expense,5200,HOME SUPPLY WAREHOUSE STORES
CCC_10000231_4,02/12/2021,Parks & Green Spaces,T&M B2C ECOMM WWW.THOMPSON-,55.96,General Expense,5399,GENERAL MERCHANDISE OR CONVENIENCE FOOD STORES
CCC_10000231_5,02/12/2021,Parks & Green Spaces,WWW.KENMUIR.CO.UK WEELEY HEATH,67.75,General Expense,5261,GARDEN AND LAWN SUPPLY STORES OR NURSERIES
CCC_10000231_6,02/12/2021,Parks & Green Spaces,B & Q 1188 CHELMSFORD,17,General Expense,5200,HOME SUPPLY WAREHOUSE STORES
CCC_10000272_3,02/12/2021,Public Health & Protection Services,FLOWBIRD SMART CITY UK POOLE DORSET,7.2,Car Parking,7523,AUTOMOBILE PARKING OR PARKING LOTS
CCC_10000272_4,02/12/2021,Public Health & Protection Services,TRAINLINE LONDON,35.31,Public Transport,4112,PASSENGER RAILWAYS
CCC_10000319_6,02/12/2021,Parks & Green Spaces,CHANDLER MATERIALS CHELMSFORD,37.78,Grounds Maintenance Materials,5211,LUMBER AND BUILDING MATERIALS STORES
CCC_10000345_8,02/12/2021,Parks & Green Spaces,AMZNMKTPLACE AMAZON.CO.UK,11.51,Printing & Stationary,5999,MISCELLANEOUS & SPECIALTY STORES
CCC_10000615_1,02/12/2021,Leisure & Heritage Services,AMZNMKTPLACE AMAZON.CO.UK,225.07,New Equipment,5999,MISCELLANEOUS & SPECIALTY STORES
CCC_10000146_7,03/12/2021,Leisure & Heritage Services,BOOKER LIMITED CHELMSF CHELMSFORD,149.99,General Expense,5811,CATERERS
CCC_10000158_8,03/12/2021,Human Resources,ROYAL TOWN PLANNING 02079299463,161,Training Expenses,8398,CHARITABLE OR SOCIAL SERVICES ORGANIZATIONS
CCC_10000178_1,03/12/2021,Legal & Democratic Services,TESCO STORE 2330 CHELMSFORD 2,11.74,General Expense,5411,GROCERY STORES OR SUPERMARKETS
CCC_10000178_2,03/12/2021,Legal & Democratic Services,TESCO STORE 2330 CHELMSFORD 2,25,General Expense,5411,GROCERY STORES OR SUPERMARKETS
CCC_10000178_3,03/12/2021,Legal & Democratic Services,TESCO STORE 2330 CHELMSFORD 2,33,General Expense,5411,GROCERY STORES OR SUPERMARKETS
CCC_10000183_3,03/12/2021,South Essex Parking Partnership,BP BASILDON SFC CONNEC BASILDON ESSE,38.18,Fuel,5541,GAS/SERVICE STATIONS WITH/WITHOUT ANCILLARY SERVICES
CCC_10000183_4,03/12/2021,South Essex Parking Partnership,HALFORDS 0547 BASILDON,12.49,Vehicle Repairs,5940,BICYCLE SHOPS -- SALES AND SERVICE
CCC_10000190_1,03/12/2021,Leisure & Heritage Services,AMZNMKTPLACE AMAZON.CO AMAZON.CO.UK,139.98,New Equipment,5999,MISCELLANEOUS & SPECIALTY STORES
CCC_10000246_14,03/12/2021,"Museums, Theatres & Cultural Services",AP LAMP DIS CM1 3AE,23.75,New Equipment,5999,MISCELLANEOUS & SPECIALTY STORES
CCC_10000246_15,03/12/2021,"Museums, Theatres & Cultural Services",B & Q 1188 CHELMSFORD,52.08,New Equipment,5200,HOME SUPPLY WAREHOUSE STORES
CCC_10000246_16,03/12/2021,"Museums, Theatres & Cultural Services",TASTE OF ITALY CHELMSFORD CM,226.67,General Expense,5812,RESTAURANTS OR EATING PLACES
CCC_10000263_1,03/12/2021,Housing Services,ANGLIAN WATER LINCOLN,16.88,General Expense,4900," ELECTRIC, GAS, SANITARY, TELEPHONE OR WATER UTILITIES "
CCC_10000272_2,03/12/2021,Public Health & Protection Services,FLOWBIRD SMART CITY UK POOLE DORSET,7.2,Car Parking,7523,AUTOMOBILE PARKING OR PARKING LOTS
CCC_10000285_9,03/12/2021,Operational Services,HALFORDS ON LINE REDDITCH,4.66,Vehicle Repairs,5940,BICYCLE SHOPS -- SALES AND SERVICE
CCC_10000614_1,03/12/2021,Leisure & Heritage Services,SP   CHOICE WHOLESALE ENFIELD,38.49,New Equipment,5399,GENERAL MERCHANDISE OR CONVENIENCE FOOD STORES
CCC_10000195_2,04/12/2021,Public Health & Protection Services,AMZNMKTPLACE AMAZON.CO AMAZON.CO.UK,22.95,Clothing & Uniforms,5999,MISCELLANEOUS & SPECIALTY STORES
CCC_10000198_8,04/12/2021,Digital Services,123 REG LTD 03454502310,14.39,Publications,5968,CONTINUITY/SUBSCRIPTION MERCHANT
CCC_10000246_13,04/12/2021,"Museums, Theatres & Cultural Services",SCREWFIX DIRECT YEOVIL,52.98,New Equipment,5211,LUMBER AND BUILDING MATERIALS STORES
CCC_10000612_1,04/12/2021,Leisure & Heritage Services,SPORTSDIRECT.COM SHIREBROOK,212.07,New Equipment,5691,MEN'S AND WOMEN'S CLOTHING STORES
CCC_10000613_1,04/12/2021,Leisure & Heritage Services,AMZNMKTPLACE AMAZON.CO.UK,19.99,New Equipment,5999,MISCELLANEOUS & SPECIALTY STORES
CCC_10000746_1,04/12/2021,"Museums, Theatres & Cultural Services",TESCO STORE 2330 CHELMSFORD 2,41.95,General Expense,5411,GROCERY STORES OR SUPERMARKETS
CCC_10000145_1,05/12/2021,Marketing & Communications Team,EPH RECEPTION BIRMINGHAM,153.33,Accommodation,7011," LODGING,HOTELS,MOTELS,RESORTS "
CCC_10000146_6,05/12/2021,Leisure & Heritage Services,AMZNMKTPLACE AMAZON.CO.UK,13.52,General Expense,5999,MISCELLANEOUS & SPECIALTY STORES
CCC_10000149_1,05/12/2021,Leisure & Heritage Services,AMZNMKTPLACE AMAZON.CO.UK,20.53,New Equipment,5999,MISCELLANEOUS & SPECIALTY STORES
CCC_10000152_2,05/12/2021,"Museums, Theatres & Cultural Services",GREATERANGLIACOM EC1N 2TD,54.17,Public Transport,4112,PASSENGER RAILWAYS
CCC_10000220_1,05/12/2021,"Museums, Theatres & Cultural Services",BRAINTREE GARDEN CENTR BRAINTREE,2.49,Printing & Stationary,5261,GARDEN AND LAWN SUPPLY STORES OR NURSERIES
CCC_10000222_1,05/12/2021,"Museums, Theatres & Cultural Services",LIDL GB BRAINTREE BRAINTREE,3.58,General Expense,5411,GROCERY STORES OR SUPERMARKETS
CCC_10000246_12,05/12/2021,"Museums, Theatres & Cultural Services",AMZNMKTPLACE AMAZON.CO AMAZON.CO.UK,5.82,New Equipment,5999,MISCELLANEOUS & SPECIALTY STORES
CCC_10000310_1,05/12/2021,Leisure & Heritage Services,TESCO STORE 2330 CHELMSFORD 2,4.17,New Equipment,5411,GROCERY STORES OR SUPERMARKETS
CCC_10000611_1,05/12/2021,Leisure & Heritage Services,AMZNMKTPLACE AMAZON.CO.UK,6.66,New Equipment,5999,MISCELLANEOUS & SPECIALTY STORES
CCC_10000672_1,05/12/2021,Leisure & Heritage Services,SPORTSDIRECT.COM SHIREBROOK,-9.98,New Equipment,5691,MEN'S AND WOMEN'S CLOTHING STORES
CCC_10000146_4,06/12/2021,Leisure & Heritage Services,TESCO STORE 2310 COLCHESTER 2,50.33,General Expense,5411,GROCERY STORES OR SUPERMARKETS
CCC_10000146_5,06/12/2021,Leisure & Heritage Services,TESCO STORE 2330 CHELMSFORD 2,7.8,General Expense,5411,GROCERY STORES OR SUPERMARKETS
CCC_10000150_3,06/12/2021,"Museums, Theatres & Cultural Services",WILKO RETAIL LIMITED CHELMSFORD,24.67,Museum Exhibits,5399,GENERAL MERCHANDISE OR CONVENIENCE FOOD STORES
CCC_10000150_4,06/12/2021,"Museums, Theatres & Cultural Services",POST OFFICE COUNTER CHELMSFORD,20.4,Printing & Stationary,9402,POSTAGE STAMPS
CCC_10000158_4,06/12/2021,Human Resources,SHL GROUP LTD THAMES DITTON,316.8,Advertising,7399,BUSINESS SERVICES (NEC)
CCC_10000158_5,06/12/2021,Human Resources,SHL GROUP LTD THAMES DITTON,158.4,Advertising,7399,BUSINESS SERVICES (NEC)
CCC_10000158_6,06/12/2021,Human Resources,ROYAL TOWN PLANNING 02079299463,64,Training Expenses,8398,CHARITABLE OR SOCIAL SERVICES ORGANIZATIONS
CCC_10000158_7,06/12/2021,Human Resources,ROYAL TOWN PLANNING 02079299463,161,Training Expenses,8398,CHARITABLE OR SOCIAL SERVICES ORGANIZATIONS
CCC_10000160_2,06/12/2021,Corporate Property Services,RICS COM GBP CYBS INTERNET,100,General Expense,8699,MEMBERSHIP ORGANIZATIONS NOT ELSEWHERE CLASSIFIED
CCC_10000167_1,06/12/2021,Legal & Democratic Services,VIKING UK LEICESTER,75.59,Printing & Stationary,5111," STATIONERY, OFFICE SUPPLIES, PRINTING AND WRITING PAPER "
CCC_10000171_5,06/12/2021,Parking & Highways Operations,AMAZON.CO.UK J245W4AH5 AMAZON.CO.UK,12.57,Printing & Stationary,5969,DIRECT MARKETERS (NEC)
CCC_10000171_6,06/12/2021,Parking & Highways Operations,AMZNMKTPLACE AMAZON.CO.UK,7.16,Printing & Stationary,5999,MISCELLANEOUS & SPECIALTY STORES
CCC_10000171_7,06/12/2021,Parking & Highways Operations,AMZNMKTPLACE AMAZON.CO.UK,6.37,Printing & Stationary,5999,MISCELLANEOUS & SPECIALTY STORES
CCC_10000183_2,06/12/2021,South Essex Parking Partnership,CURRYS BASILDON BASILDON,34.99,New Equipment,5732,ELECTRONIC SALES
CCC_10000189_1,06/12/2021,Leisure & Heritage Services,AMZNMKTPLACE AMAZON.CO AMAZON.CO.UK,24.99,New Equipment,5999,MISCELLANEOUS & SPECIALTY STORES
CCC_10000231_2,06/12/2021,Parks & Green Spaces,B & Q 1188 CHELMSFORD,70.58,General Expense,5200,HOME SUPPLY WAREHOUSE STORES
CCC_10000243_3,06/12/2021,Parks & Green Spaces,EURO CAR PARTS TAMWORTH,150.85,General Expense,5533," AUTOMOTIVE PARTS, ACCESSORIES STORES "
CCC_10000274_5,06/12/2021,Parks & Green Spaces,TESCO STORE 2330 CHELMSFORD 2,44.17,Grounds Maintenance Materials,5411,GROCERY STORES OR SUPERMARKETS
CCC_10000324_1,06/12/2021,Leisure & Heritage Services,VIKING UK LEICESTER,33.02,Printing & Stationary,5111," STATIONERY, OFFICE SUPPLIES, PRINTING AND WRITING PAPER "
CCC_10000340_1,06/12/2021,Leisure & Heritage Services,WM MORRISONS STORE CHELMSFORD,3.16,General Expense,5411,GROCERY STORES OR SUPERMARKETS
CCC_10000143_1,07/12/2021,"Museums, Theatres & Cultural Services",WWW.TTS-GROUPS.CO.UK INTERNET,28.78,New Equipment,5943," STATIONERY STORES, OFFICE & SCHOOL SUPPLY STORES "
CCC_10000143_2,07/12/2021,"Museums, Theatres & Cultural Services",AMZNMKTPLACE AMAZON.CO AMAZON.CO.UK,49.87,New Equipment,5999,MISCELLANEOUS & SPECIALTY STORES
CCC_10000155_1,07/12/2021,Parks & Green Spaces,ASDA SUPERSTORE CHELMSFORD,25,General Expense,5411,GROCERY STORES OR SUPERMARKETS
CCC_10000160_1,07/12/2021,Corporate Property Services,RICS SUBS UK CYBS INTERNET,298,General Expense,8699,MEMBERSHIP ORGANIZATIONS NOT ELSEWHERE CLASSIFIED
CCC_10000171_1,07/12/2021,Parking & Highways Operations,AMAZON.CO.UK G49C23225 AMAZON.CO.UK,19.65,Printing & Stationary,5969,DIRECT MARKETERS (NEC)
CCC_10000171_3,07/12/2021,Parking & Highways Operations,AMZNMKTPLACE AMAZON.CO.UK,8.41,Printing & Stationary,5999,MISCELLANEOUS & SPECIALTY STORES
CCC_10000171_4,07/12/2021,Parking & Highways Operations,AMZNMKTPLACE AMAZON.CO.UK,3.92,Printing & Stationary,5999,MISCELLANEOUS & SPECIALTY STORES
CCC_10000171_8,07/12/2021,Parking & Highways Operations,AMAZON.CO.UK 8R9DX41G5 AMAZON.CO.UK,41.66,Printing & Stationary,5969,DIRECT MARKETERS (NEC)
CCC_10000171_9,07/12/2021,Parking & Highways Operations,AMAZON.CO.UK LS90U4O45 AMAZON.CO.UK,20.32,Printing & Stationary,5969,DIRECT MARKETERS (NEC)
CCC_10000174_1,07/12/2021,Parks & Green Spaces,AMZNMKTPLACE AMAZON.CO.UK,23.31,Printing & Stationary,5999,MISCELLANEOUS & SPECIALTY STORES
CCC_10000174_2,07/12/2021,Parks & Green Spaces,AMZNMKTPLACE AMAZON.CO.UK,6.66,Printing & Stationary,5999,MISCELLANEOUS & SPECIALTY STORES
CCC_10000179_1,07/12/2021,"Museums, Theatres & Cultural Services",CONSERVATION BY DE 01234 846302,150,Museum Exhibits,5111," STATIONERY, OFFICE SUPPLIES, PRINTING AND WRITING PAPER "
CCC_10000195_1,07/12/2021,Public Health & Protection Services,AMAZON.CO.UK EI3CZ2XS5 AMAZON.CO.UK,53.07,Printing & Stationary,5969,DIRECT MARKETERS (NEC)
CCC_10000196_1,07/12/2021,Public Health & Protection Services,PRINT MARKETPLACE 40 2802345,187.74,Printing & Stationary,7338," PRINT SHOPS, QUICK COPY SERVICES OR REPRODUCTION SERVICES "
CCC_10000244_3,07/12/2021,Marketing & Communications Team,CANVA  I03262-18235808 CAMDEN,4.17,Employee Subscriptions,7221,PHOTOGRAPHIC STUDIOS
CCC_10000246_10,07/12/2021,"Museums, Theatres & Cultural Services",LAWSON H I S LTD SOUTHAMPTON,18.5,New Equipment,5072," HARDWARE, PLUMBING, HEATING EQUIPMENT AND SUPPLIES "
CCC_10000246_11,07/12/2021,"Museums, Theatres & Cultural Services",SCREWFIX DIRECT YEOVIL,13.55,New Equipment,5211,LUMBER AND BUILDING MATERIALS STORES
CCC_10000345_13,07/12/2021,Parks & Green Spaces,TEFFONT BUSINESS SYSTE BRISTOL BS37,144,Printing & Stationary,7379," COMPUTER MAINTENANCE, REPAIR AND SERVICES "
CCC_10000360_2,07/12/2021,"Museums, Theatres & Cultural Services",MARK ONE HIRE LTD ROCHFORD,300,Training Expenses,8249,VOCATIONAL OR TRADE SCHOOLS
CCC_10000144_1,08/12/2021,Leisure & Heritage Services,POST OFFICE SELF SERVI CHELMSFORD,14.75,General Expense,9402,POSTAGE STAMPS
CCC_10000146_1,08/12/2021,Leisure & Heritage Services,AMAZON.CO.UK RK3TC4PH5 AMAZON.CO.UK,7.73,General Expense,5969,DIRECT MARKETERS (NEC)
CCC_10000146_2,08/12/2021,Leisure & Heritage Services,TESCO STORE 2330 CHELMSFORD 2,15.2,General Expense,5411,GROCERY STORES OR SUPERMARKETS
CCC_10000146_3,08/12/2021,Leisure & Heritage Services,AMAZON.CO.UK T56NC9A95 AMAZON.CO.UK,4.16,Printing & Stationary,5969,DIRECT MARKETERS (NEC)
CCC_10000158_1,08/12/2021,Human Resources,C I H 024 7685 1791,344,Training Expenses,8641," SOCIAL, FRATERNAL OR CIVIC ASSOCIATIONS "
CCC_10000158_2,08/12/2021,Human Resources,ICAEW MILTON KEYNES,400,Training Expenses,8931," ACCOUNTING, BOOKKEEPING OR AUDITING SERVICES "
CCC_10000158_3,08/12/2021,Human Resources,IHASCO.CO.UK BRACKNELL,180,Training Expenses,5815," DIGITAL GOODS MEDIA: BOOKS, MOVIES, MUSIC "
CCC_10000170_2,08/12/2021,Operational Services,SCREWFIX DIR LTD CHELMFOR1066,458.32,New Equipment,5211,LUMBER AND BUILDING MATERIALS STORES
CCC_10000183_1,08/12/2021,South Essex Parking Partnership,CHELMSFORD SAFETY SUPP CHELMSFORD,191.4,Clothing & Uniforms,5047," MEDICAL, DENTAL, OPHTHALMIC AND HOSPITAL EQUIP "
CCC_10000184_1,08/12/2021,Building Control,ONLINE50 866-312-7733,40,Employee Subscriptions,5734,COMPUTER SOFTWARE STORES
CCC_10000228_1,08/12/2021,Leisure & Heritage Services,AMZNMKTPLACE AMAZON.CO AMAZON.CO.UK,21.65,New Equipment,5999,MISCELLANEOUS & SPECIALTY STORES
CCC_10000244_2,08/12/2021,Marketing & Communications Team,PRINT MARKETPLACE 40 2802345,596.46,Printing & Stationary,7338," PRINT SHOPS, QUICK COPY SERVICES OR REPRODUCTION SERVICES "
CCC_10000246_8,08/12/2021,"Museums, Theatres & Cultural Services",SCREWFIX DIRECT YEOVIL,21.88,New Equipment,5211,LUMBER AND BUILDING MATERIALS STORES
CCC_10000246_9,08/12/2021,"Museums, Theatres & Cultural Services",WWW.FFX.CO.UK HYTHE,59.92,New Equipment,5211,LUMBER AND BUILDING MATERIALS STORES
CCC_10000272_1,08/12/2021,Public Health & Protection Services,TRAINLINE.COM LONDON,20.89,Public Transport,4112,PASSENGER RAILWAYS
CCC_10000285_8,08/12/2021,Operational Services,SAFETY GLOVES LONDON,524.4,Clothing & Uniforms,5047," MEDICAL, DENTAL, OPHTHALMIC AND HOSPITAL EQUIP "
CCC_10000319_5,08/12/2021,Parks & Green Spaces,AMZNMKTPLACE AMAZON.CO AMAZON.CO.UK,27.22,Grounds Maintenance Materials,5999,MISCELLANEOUS & SPECIALTY STORES
CCC_10000345_12,08/12/2021,Parks & Green Spaces,TEFFONT BUSINESS SYSTE BRISTOL BS37,621.6,Printing & Stationary,7379," COMPUTER MAINTENANCE, REPAIR AND SERVICES "
CCC_10000610_1,08/12/2021,Leisure & Heritage Services,AMAZON.CO.UK 018KX6655 AMAZON.CO.UK,6.85,Printing & Stationary,5969,DIRECT MARKETERS (NEC)
CCC_10000666_1,08/12/2021,Leisure & Heritage Services,WF EDUCATION GROUP LTD SHREWSBURY,-69.95,New Equipment,5047," MEDICAL, DENTAL, OPHTHALMIC AND HOSPITAL EQUIP "
CCC_10000150_1,09/12/2021,"Museums, Theatres & Cultural Services",AMZNMKTPLACE AMAZON.CO.UK,20.12,Printing & Stationary,5999,MISCELLANEOUS & SPECIALTY STORES
CCC_10000150_2,09/12/2021,"Museums, Theatres & Cultural Services",AMZNMKTPLACE AMAZON.CO.UK,9.96,Printing & Stationary,5999,MISCELLANEOUS & SPECIALTY STORES
CCC_10000152_1,09/12/2021,"Museums, Theatres & Cultural Services",POST OFFICE COUNTER CHELMSFORD,8.95,Museum Exhibits,9402,POSTAGE STAMPS
CCC_10000164_1,09/12/2021,Digital Services,REALVNC LIMITED CAMBRIDGE,3325.72,General Expense,5045,COMPUTERS AND COMPUTER PERIPHERAL EQUIPMENT AND SOFTWARE
CCC_10000170_1,09/12/2021,Operational Services,TESCO STORE 2172 BRAINTREE,11.67,General Expense,5411,GROCERY STORES OR SUPERMARKETS
CCC_10000175_1,09/12/2021,Public Health & Protection Services,ESSEX COUNTY COUNCI EC CHELMSFORD,11,Printing & Stationary,9399,GOVERNMENT SERVICES (NEC) OR FIRE DEPARTMENTS
CCC_10000206_1,09/12/2021,Public Health & Protection Services,DVLA VEHICLE TAX 0300 1234321,153.75,Vehicle Tax,9311,TAX PAYMENTS
CCC_10000206_2,09/12/2021,Public Health & Protection Services,DVLA VEHICLE TAX 0300 1234321,153.75,Vehicle Tax,9311,TAX PAYMENTS
CCC_10000286_2,09/12/2021,"Museums, Theatres & Cultural Services",SAINSBURYS S/MKTS SOUTH WOODHAM,7.8,General Expense,5411,GROCERY STORES OR SUPERMARKETS
CCC_10000321_4,09/12/2021,Operational Services,SAINSBURY'S S/MKT SPRINGFIELD,64.77,General Expense,5411,GROCERY STORES OR SUPERMARKETS
CCC_10000345_7,09/12/2021,Parks & Green Spaces,D. BYFORD & SONS COLCHESTER CO,83.46,Grounds Maintenance Materials,5193," FLORIST SUPPLIES, NURSERY STOCK AND FLOWERS "
CCC_10000448_3,09/12/2021,Operational Services,HOBBYCRAFT CHELMSFORD,3.33,Printing & Stationary,5970,CRAFT OR ARTIST'S SUPPLY SHOPS
CCC_10000459_6,09/12/2021,Leisure & Heritage Services,PAYPAL  SPRINGFIELD 35314369001,48,General Expense,5992,FLORISTS
CCC_10000490_2,09/12/2021,Parks & Green Spaces,CHANDLER MATERIALS CHELMSFORD,33.59,Grounds Maintenance Materials,5211,LUMBER AND BUILDING MATERIALS STORES
CCC_10000609_1,09/12/2021,Leisure & Heritage Services,AMZNMKTPLACE AMAZON.CO.UK,3.66,Printing & Stationary,5999,MISCELLANEOUS & SPECIALTY STORES
CCC_10000697_2,09/12/2021,Building Services,ARGOS LTD INTERNET,55.78,New Equipment,5310,DISCOUNT STORES
CCC_10000200_1,10/12/2021,Public Health & Protection Services,GREATER ANGLIA 8857,24.4,Public Transport,4112,PASSENGER RAILWAYS
CCC_10000202_1,10/12/2021,Operational Services,DVLA VEHICLE TAX 0300 1234321,277.5,Vehicle Tax,9311,TAX PAYMENTS
CCC_10000202_2,10/12/2021,Operational Services,DVLA VEHICLE TAX 0300 1234321,202.5,Vehicle Tax,9311,TAX PAYMENTS
CCC_10000202_3,10/12/2021,Operational Services,DVLA VEHICLE TAX 0300 1234321,202.5,Vehicle Tax,9311,TAX PAYMENTS
CCC_10000202_4,10/12/2021,Operational Services,DVLA VEHICLE TAX 0300 1234321,302.5,Vehicle Tax,9311,TAX PAYMENTS
CCC_10000202_5,10/12/2021,Operational Services,DVLA VEHICLE TAX 0300 1234321,302.5,Vehicle Tax,9311,TAX PAYMENTS
CCC_10000202_6,10/12/2021,Operational Services,DVLA VEHICLE TAX 0300 1234321,302.5,Vehicle Tax,9311,TAX PAYMENTS
CCC_10000205_1,10/12/2021,Revenue and Benefit Services,SOUTHEND COUNTY WWW.JUCTIC.GO,807,General Expense,9222,FINES
CCC_10000206_3,10/12/2021,Public Health & Protection Services,CHARTERED INSTITUTE OF LONDON,180,Training Expenses,8398,CHARITABLE OR SOCIAL SERVICES ORGANIZATIONS
CCC_10000207_1,10/12/2021,Public Health & Protection Services,SP   PATROLSTORE REIAGTE,155.8,Clothing & Uniforms,5399,GENERAL MERCHANDISE OR CONVENIENCE FOOD STORES
CCC_10000212_1,10/12/2021,Parks & Green Spaces,SCREWFIX DIRECT YEOVIL,87.96,General Expense,5211,LUMBER AND BUILDING MATERIALS STORES
CCC_10000213_1,10/12/2021,Parking & Highways Operations,SCREWFIX DIRECT YEOVIL,14.99,Car Parking,5211,LUMBER AND BUILDING MATERIALS STORES
CCC_10000235_1,10/12/2021,Leisure & Heritage Services,AMZNMKTPLACE AMAZON.CO AMAZON.CO.UK,26.65,General Expense,5999,MISCELLANEOUS & SPECIALTY STORES
CCC_10000241_3,10/12/2021,"Museums, Theatres & Cultural Services",SAINSBURYS S/MKTS CHELMSFORD 41,6.67,General Expense,5411,GROCERY STORES OR SUPERMARKETS
CCC_10000246_7,10/12/2021,"Museums, Theatres & Cultural Services",BOOKER LIMITED CHELMSF CHELMSFORD,171.46,New Equipment,5811,CATERERS
CCC_10000281_4,10/12/2021,Parks & Green Spaces,ATE (UK) LTD COLCHESTER,-109.74,Vehicle Repairs,7549,TOWING SERVICES
CCC_10000321_3,10/12/2021,Operational Services,SOUNDSTRIPE NASHVILLE,187.13,Employee Subscriptions,5734,COMPUTER SOFTWARE STORES
CCC_10000397_2,10/12/2021,Human Resources,SHL GROUP LTD THAMES DITTON,44,General Expense,7399,BUSINESS SERVICES (NEC)
CCC_10000697_3,10/12/2021,Building Services,KINGDOM COFFEE READING,146.42,General Expense,5499,MISC FOOD STORES - SPECIALTY MARKETS & CONVENIENCE
CCC_10000199_1,11/12/2021,Marketing & Communications Team,FACEBK 2KUUFAXKD2 FB.ME/ADS,9,Advertising,7311,ADVERTISING SERVICES
CCC_10000241_1,11/12/2021,"Museums, Theatres & Cultural Services",AMZNMKTPLACE AMAZON.CO.UK,5.74,General Expense,5999,MISCELLANEOUS & SPECIALTY STORES
CCC_10000241_2,11/12/2021,"Museums, Theatres & Cultural Services",AMZNMKTPLACE AMAZON.CO.UK,4.38,General Expense,5999,MISCELLANEOUS & SPECIALTY STORES
CCC_10000279_6,11/12/2021,Street Care & Performance,ADVANCED WATER WORCESTER,54.77,New Equipment,5999,MISCELLANEOUS & SPECIALTY STORES
CCC_10000211_1,12/12/2021,Marketing & Communications Team,PRINT MARKETPLACE 40 2802345,54.69,Printing & Stationary,7338," PRINT SHOPS, QUICK COPY SERVICES OR REPRODUCTION SERVICES "
CCC_10000246_6,12/12/2021,"Museums, Theatres & Cultural Services",SCREWFIX DIRECT YEOVIL,15.16,New Equipment,5211,LUMBER AND BUILDING MATERIALS STORES
CCC_10000300_1,12/12/2021,"Museums, Theatres & Cultural Services",AMZNMKTPLACE AMAZON.CO.UK,11.58,New Equipment,5999,MISCELLANEOUS & SPECIALTY STORES
CCC_10000203_1,13/12/2021,Parks & Green Spaces,AMAZON.CO.UK JU4AL0465 AMAZON.CO.UK,12.82,Printing & Stationary,5969,DIRECT MARKETERS (NEC)
CCC_10000203_2,13/12/2021,Parks & Green Spaces,AMZNMKTPLACE AMAZON.CO.UK,3.91,Printing & Stationary,5999,MISCELLANEOUS & SPECIALTY STORES
CCC_10000208_1,13/12/2021,Spatial Planning,AMZNMKTPLACE AMAZON.CO AMAZON.CO.UK,22.48,New Equipment,5999,MISCELLANEOUS & SPECIALTY STORES
CCC_10000208_2,13/12/2021,Spatial Planning,AMZNMKTPLACE AMAZON.CO AMAZON.CO.UK,20.82,New Equipment,5999,MISCELLANEOUS & SPECIALTY STORES
CCC_10000209_3,13/12/2021,Leisure & Heritage Services,AMZNMKTPLACE AMAZON.CO.UK,45.82,General Expense,5999,MISCELLANEOUS & SPECIALTY STORES
CCC_10000210_1,13/12/2021,Operational Services,PRINT MARKETPLACE 40 2802345,164.27,Printing & Stationary,7338," PRINT SHOPS, QUICK COPY SERVICES OR REPRODUCTION SERVICES "
CCC_10000215_1,13/12/2021,"Museums, Theatres & Cultural Services",VISTAPRINT VENLO,-21.13,Printing & Stationary,7399,BUSINESS SERVICES (NEC)
CCC_10000226_2,13/12/2021,Parks & Green Spaces,VIKING UK LEICESTER,89.46,Printing & Stationary,5111," STATIONERY, OFFICE SUPPLIES, PRINTING AND WRITING PAPER "
CCC_10000226_3,13/12/2021,Parks & Green Spaces,DVLA VEHICLE TAX 0300 1234321,277.5,Vehicle Tax,9311,TAX PAYMENTS
CCC_10000226_4,13/12/2021,Parks & Green Spaces,DVLA VEHICLE TAX 0300 1234321,277.5,Vehicle Tax,9311,TAX PAYMENTS
CCC_10000226_5,13/12/2021,Parks & Green Spaces,DVLA VEHICLE TAX 0300 1234321,277.5,Vehicle Tax,9311,TAX PAYMENTS
CCC_10000233_1,13/12/2021,Leisure & Heritage Services,VOUCHER EXPRESS RIPON,50,General Expense,7399,BUSINESS SERVICES (NEC)
CCC_10000234_1,13/12/2021,Leisure & Heritage Services,AMZNMKTPLACE AMAZON.CO.UK,26.99,New Equipment,5999,MISCELLANEOUS & SPECIALTY STORES
CCC_10000239_1,13/12/2021,Parks & Green Spaces,WARD SIGNS BRISTOL,140,Advertising,2741,MISCELLANEOUS PUBLISHING AND PRINTING
CCC_10000246_4,13/12/2021,"Museums, Theatres & Cultural Services",AMZNMKTPLACE AMAZON.CO AMAZON.CO.UK,8.32,New Equipment,5999,MISCELLANEOUS & SPECIALTY STORES
CCC_10000246_5,13/12/2021,"Museums, Theatres & Cultural Services",WWW.SCREWFIX.COM YEOVIL,11.47,New Equipment,5211,LUMBER AND BUILDING MATERIALS STORES
CCC_10000274_3,13/12/2021,Parks & Green Spaces,FRONTBOWL LIMITED WICKFORD,37,Grounds Maintenance Materials,5251,HARDWARE STORES
CCC_10000274_4,13/12/2021,Parks & Green Spaces,WWW.JTOMS.CO.UK INTERNET,269,Grounds Maintenance Materials,5999,MISCELLANEOUS & SPECIALTY STORES
CCC_10000307_10,13/12/2021,Human Resources,WWW.IRRV.ORG.UK INTERNET,186,Training Expenses,2741,MISCELLANEOUS PUBLISHING AND PRINTING
CCC_10000307_8,13/12/2021,Human Resources,RICS SUBS UK CYBS COVENTRY,539,Training Expenses,8699,MEMBERSHIP ORGANIZATIONS NOT ELSEWHERE CLASSIFIED
CCC_10000307_9,13/12/2021,Human Resources,ROYAL TOWN PLANNING 02079299463,321,Training Expenses,8398,CHARITABLE OR SOCIAL SERVICES ORGANIZATIONS
CCC_10000345_6,13/12/2021,Parks & Green Spaces,TESCO STORE 2330 CHELMSFORD 2,48,Grounds Maintenance Materials,5411,GROCERY STORES OR SUPERMARKETS
CCC_10000353_1,13/12/2021,Parks & Green Spaces,WM MORRISONS STORE CHELMSFORD,19.36,General Expense,5411,GROCERY STORES OR SUPERMARKETS
CCC_10000198_5,14/12/2021,Digital Services,SCREWFIX DIRECT YEOVIL,8.4,New Equipment,5211,LUMBER AND BUILDING MATERIALS STORES
CCC_10000201_4,14/12/2021,Leisure & Heritage Services,NATIVE PROMOTIONS ESSEX,26.9,General Expense,7333," PHOTOGRAPHY, ART AND GRAPHIC -- COMMERCIAL "
CCC_10000209_2,14/12/2021,Leisure & Heritage Services,RS COMPONENTS 08457 201201,350,New Equipment,5065,ELECTRICAL PARTS AND EQUIPMENT
CCC_10000219_1,14/12/2021,Parking & Highways Operations,SCREWFIX DIRECT YEOVIL,5.82,General Expense,5211,LUMBER AND BUILDING MATERIALS STORES
CCC_10000226_1,14/12/2021,Parks & Green Spaces,DVLA VEHICLE TAX 0300 1234321,277.5,Vehicle Tax,9311,TAX PAYMENTS
CCC_10000231_1,14/12/2021,Parks & Green Spaces,BLACKS CHELMSFORD,10,General Expense,5941,SPORTING GOODS STORES
CCC_10000236_1,14/12/2021,"Museums, Theatres & Cultural Services",GREATER ANGLIA T/O CHLMSFRD 6836,31.7,Public Transport,4112,PASSENGER RAILWAYS
CCC_10000244_1,14/12/2021,Marketing & Communications Team,CANVA  I03269-26822296 CAMDEN,3.12,Employee Subscriptions,7221,PHOTOGRAPHIC STUDIOS
CCC_10000246_1,14/12/2021,"Museums, Theatres & Cultural Services",AMZNMKTPLACE AMAZON.CO.UK,11.24,New Equipment,5999,MISCELLANEOUS & SPECIALTY STORES
CCC_10000246_2,14/12/2021,"Museums, Theatres & Cultural Services",AP LAMP DIS CM1 3AE,11.7,New Equipment,5999,MISCELLANEOUS & SPECIALTY STORES
CCC_10000246_3,14/12/2021,"Museums, Theatres & Cultural Services",CHELMSFORD VAN HIRE LT CHELMSFORD,40,New Equipment,7512,CAR RENTAL AGENCIES -- NOT LISTED BELOW
CCC_10000262_1,14/12/2021,Leisure & Heritage Services,RS COMPONENTS 08457 201201,392.35,New Equipment,5065,ELECTRICAL PARTS AND EQUIPMENT
CCC_10000269_2,14/12/2021,"Museums, Theatres & Cultural Services",AMZNMKTPLACE AMAZON.CO.UK,27.4,New Equipment,5999,MISCELLANEOUS & SPECIALTY STORES
CCC_10000280_6,14/12/2021,South Essex Parking Partnership,AMZNMKTPLACE AMAZON.CO.UK,4.92,New Equipment,5999,MISCELLANEOUS & SPECIALTY STORES
CCC_10000280_7,14/12/2021,South Essex Parking Partnership,CURRYS BASILDON BASILDON,77.47,New Equipment,5732,ELECTRONIC SALES
CCC_10000281_2,14/12/2021,Parks & Green Spaces,WWW.TUDORENVIRONMENTAL COVENTRY CV3,348.48,Grounds Maintenance Materials,5261,GARDEN AND LAWN SUPPLY STORES OR NURSERIES
CCC_10000307_5,14/12/2021,Human Resources,ROYAL TOWN PLANNING 02079299463,642,Employee Subscriptions,8398,CHARITABLE OR SOCIAL SERVICES ORGANIZATIONS
CCC_10000307_6,14/12/2021,Human Resources,ROYAL TOWN PLANNING 02079299463,642,Employee Subscriptions,8398,CHARITABLE OR SOCIAL SERVICES ORGANIZATIONS
CCC_10000307_7,14/12/2021,Human Resources,WWW.IRRV.ORG.UK INTERNET,186,Employee Subscriptions,2741,MISCELLANEOUS PUBLISHING AND PRINTING
CCC_10000319_4,14/12/2021,Parks & Green Spaces,HOMEBASE LTD CHELMSFORD,18.75,Grounds Maintenance Materials,5200,HOME SUPPLY WAREHOUSE STORES
CCC_10000697_4,14/12/2021,Building Services,TESCO STORES 5408 CHELMSFORD,5,General Expense,5411,GROCERY STORES OR SUPERMARKETS
CCC_10000201_3,15/12/2021,Leisure & Heritage Services,ERNEST DOE / SONS FYFIELD,78.1,New Equipment,5599,AUTOMOTIVE DEALERS
CCC_10000209_1,15/12/2021,Leisure & Heritage Services,AMZNMKTPLACE AMAZON.CO.UK,21.64,New Equipment,5999,MISCELLANEOUS & SPECIALTY STORES
CCC_10000240_1,15/12/2021,Leisure & Heritage Services,SPOTIFY P1881ED535 LONDON,9.99,General Expense,5815," DIGITAL GOODS MEDIA: BOOKS, MOVIES, MUSIC "
CCC_10000245_1,15/12/2021,Corporate Property Services,PROCONFERENCES.COM 01932 752685,95,Training Expenses,8220," UNIVERSITIES, COLLEGES, SR COLLEGES OR PROFESSIONAL SCHOOLS "
CCC_10000268_1,15/12/2021,"Museums, Theatres & Cultural Services",B&Q LTD EASTLEIGH,28.83,New Equipment,5211,LUMBER AND BUILDING MATERIALS STORES
CCC_10000279_4,15/12/2021,Street Care & Performance,SCREWFIX DIRECT YEOVIL,119.99,New Equipment,5211,LUMBER AND BUILDING MATERIALS STORES
CCC_10000279_5,15/12/2021,Street Care & Performance,WWW.VENESTA.CO.UK 01782277291,154,New Equipment,5712," FURNITURE, HOME FURNISHINGS & EQUIP STORES EXCL APPLIANCES "
CCC_10000280_5,15/12/2021,South Essex Parking Partnership,POUNDLAND LTD 1707 BRENTWOOD,4.17,Printing & Stationary,5310,DISCOUNT STORES
CCC_10000286_1,15/12/2021,"Museums, Theatres & Cultural Services",B & Q 1188 CHELMSFORD,25,New Equipment,5200,HOME SUPPLY WAREHOUSE STORES
CCC_10000287_3,15/12/2021,Leisure & Heritage Services,SAFE FENCE 08000432520,479.89,New Equipment,5200,HOME SUPPLY WAREHOUSE STORES
CCC_10000309_1,15/12/2021,Leisure & Heritage Services,AMZNMKTPLACE AMAZON.CO.UK,19.15,Printing & Stationary,5999,MISCELLANEOUS & SPECIALTY STORES
CCC_10000353_2,15/12/2021,Parks & Green Spaces,TESCO-STORES 6724 CHELMSFORD,3.3,General Expense,5411,GROCERY STORES OR SUPERMARKETS
CCC_10000360_1,15/12/2021,"Museums, Theatres & Cultural Services",AMZNMKTPLACE AMAZON.CO AMAZON.CO.UK,-32.99,New Equipment,5999,MISCELLANEOUS & SPECIALTY STORES
CCC_10000716_1,15/12/2021,Parks & Green Spaces,AMZNMKTPLACE AMAZON.CO AMAZON.CO.UK,151.98,Grounds Maintenance Materials,5999,MISCELLANEOUS & SPECIALTY STORES
CCC_10000198_4,16/12/2021,Digital Services,SCREWFIX DIRECT YEOVIL,4.2,General Expense,5211,LUMBER AND BUILDING MATERIALS STORES
CCC_10000223_1,16/12/2021,"Museums, Theatres & Cultural Services",AMZNMKTPLACE AMAZON.CO.UK,5.66,General Expense,5999,MISCELLANEOUS & SPECIALTY STORES
CCC_10000230_2,16/12/2021,Leisure & Heritage Services,VIRTUAL COLLEGE LIMITE ILKLEY,70,Printing & Stationary,8299,SCHOOLS AND EDUCATIONAL SERVICES (NEC)
CCC_10000232_1,16/12/2021,Operational Services,AMAZON PRIME J31DL1ZY5 AMZN.CO.UK/PM,6.66,General Expense,5968,CONTINUITY/SUBSCRIPTION MERCHANT
CCC_10000242_1,16/12/2021,Leisure & Heritage Services,AMZNMKTPLACE AMAZON.CO.UK,64.11,General Expense,5999,MISCELLANEOUS & SPECIALTY STORES
CCC_10000242_15,16/12/2021,Leisure & Heritage Services,BOOKER LIMITED CHELMSF CHELMSFORD,148.13,General Expense,5811,CATERERS
CCC_10000243_1,16/12/2021,Parks & Green Spaces,D. BYFORD & SONS COLCHESTER CO,32.04,General Expense,5193," FLORIST SUPPLIES, NURSERY STOCK AND FLOWERS "
CCC_10000243_2,16/12/2021,Parks & Green Spaces,TESCO STORE 3120 ROMFORD 2,5,Printing & Stationary,5411,GROCERY STORES OR SUPERMARKETS
CCC_10000257_1,16/12/2021,Operational Services,DVLA VEHICLE TAX 0300 1234321,277.5,Vehicle Tax,9311,TAX PAYMENTS
CCC_10000268_2,16/12/2021,"Museums, Theatres & Cultural Services",B&Q LTD EASTLEIGH,-28.83,General Expense,5211,LUMBER AND BUILDING MATERIALS STORES
CCC_10000278_8,16/12/2021,"Museums, Theatres & Cultural Services",SCREWFIX DIRECT YEOVIL,23.3,New Equipment,5211,LUMBER AND BUILDING MATERIALS STORES
CCC_10000279_2,16/12/2021,Street Care & Performance,AMAZON.CO.UK HY46R1MG5 AMAZON.CO.UK,69.99,New Equipment,5969,DIRECT MARKETERS (NEC)
CCC_10000279_3,16/12/2021,Street Care & Performance,J STUDMAN ELECTRICAL CHELMSFORD,8,New Equipment,7629,APPLIANCE OR ELECTRICAL REPAIR SHOPS
CCC_10000280_4,16/12/2021,South Essex Parking Partnership,SP   PATROLSTORE REIAGTE,84.98,Clothing & Uniforms,5399,GENERAL MERCHANDISE OR CONVENIENCE FOOD STORES
CCC_10000281_1,16/12/2021,Parks & Green Spaces,WWW.TUDORENVIRONMENTAL COVENTRY CV3,625.68,Grounds Maintenance Materials,5261,GARDEN AND LAWN SUPPLY STORES OR NURSERIES
CCC_10000287_2,16/12/2021,Leisure & Heritage Services,MONSTER MESH LTD 35314369001,716.4,New Equipment,5099,DURABLE GOODS (NEC)
CCC_10000319_3,16/12/2021,Parks & Green Spaces,AMAZON.CO.UK 9D0NF7TL5 AMAZON.CO.UK,33.49,Grounds Maintenance Materials,5969,DIRECT MARKETERS (NEC)
CCC_10000490_1,16/12/2021,Parks & Green Spaces,OAKLEY TURF FARM HARWICH,177.2,Grounds Maintenance Materials,5261,GARDEN AND LAWN SUPPLY STORES OR NURSERIES
CCC_10000255_1,17/12/2021,Operational Services,HSD ONLINE CASTLEFORD,149.95,General Expense,1520,GENERAL CONTRACTORS - RESIDENTIAL BUILDINGS
CCC_10000256_3,17/12/2021,Digital Services,POST OFFICE COUNTER BRAINTREE,2.25,Printing & Stationary,9402,POSTAGE STAMPS
CCC_10000277_1,17/12/2021,Leisure & Heritage Services,AMAZON PRIME TX06B5RP5 AMZN.CO.UK/PM,7.99,New Equipment,5968,CONTINUITY/SUBSCRIPTION MERCHANT
CCC_10000278_7,17/12/2021,"Museums, Theatres & Cultural Services",BOOKER LIMITED CHELMSF CHELMSFORD,23.9,General Expense,5811,CATERERS
CCC_10000242_14,18/12/2021,Leisure & Heritage Services,TESCO STORE 2310 COLCHESTER 2,16.25,General Expense,5411,GROCERY STORES OR SUPERMARKETS
CCC_10000327_4,18/12/2021,Leisure & Heritage Services,AMZNMKTPLACE AMAZON.CO AMAZON.CO.UK,34.99,New Equipment,5999,MISCELLANEOUS & SPECIALTY STORES
CCC_10000359_5,18/12/2021,Marketing & Communications Team,FACEBK FCFWK8TY52 FB.ME/ADS,400,Advertising,7311,ADVERTISING SERVICES
CCC_10000362_4,18/12/2021,Digital Services,AMAZON.CO.UK IC36H3I25 AMAZON.CO.UK,29.57,General Expense,5969,DIRECT MARKETERS (NEC)
CCC_10000279_1,19/12/2021,Street Care & Performance,AMZNMKTPLACE AMAZON.CO.UK,51.76,Printing & Stationary,5999,MISCELLANEOUS & SPECIALTY STORES
CCC_10000308_1,19/12/2021,Leisure & Heritage Services,AMAZON.CO.UK 734M07BL5 AMAZON.CO.UK,137.5,New Equipment,5969,DIRECT MARKETERS (NEC)
CCC_10000334_1,19/12/2021,Leisure & Heritage Services,AMZNMKTPLACE AMAZON.CO AMAZON.CO.UK,34.99,General Expense,5999,MISCELLANEOUS & SPECIALTY STORES
CCC_10000359_4,19/12/2021,Marketing & Communications Team,PRINT MARKETPLACE 40 2802345,31.94,Printing & Stationary,7338," PRINT SHOPS, QUICK COPY SERVICES OR REPRODUCTION SERVICES "
CCC_10000370_1,19/12/2021,Leisure & Heritage Services,AMZNMKTPLACE AMAZON.CO.UK,7.82,General Expense,5999,MISCELLANEOUS & SPECIALTY STORES
CCC_10000370_2,19/12/2021,Leisure & Heritage Services,AMZNMKTPLACE AMAZON.CO.UK,47.41,General Expense,5999,MISCELLANEOUS & SPECIALTY STORES
CCC_10000370_3,19/12/2021,Leisure & Heritage Services,AMZNMKTPLACE AMAZON.CO.UK,46.62,General Expense,5999,MISCELLANEOUS & SPECIALTY STORES
CCC_10000723_1,19/12/2021,Marketing & Communications Team,WORDPRESS KK2XMW52D7 DUBLIN,10,General Expense,5734,COMPUTER SOFTWARE STORES
CCC_10000211_2,20/12/2021,Marketing & Communications Team,PRINT MARKETPLACE 40 2802345,20.29,Printing & Stationary,7338," PRINT SHOPS, QUICK COPY SERVICES OR REPRODUCTION SERVICES "
CCC_10000242_12,20/12/2021,Leisure & Heritage Services,O2 PREPAY TOP-UP SLOUGH,25,General Expense,4814,TELECOMMUNCATIONS SERV INCL LOCA/LONG DIST CREDIT & FAX
CCC_10000242_13,20/12/2021,Leisure & Heritage Services,BOOKER LIMITED CHELMSF CHELMSFORD,19.95,General Expense,5811,CATERERS
CCC_10000260_1,20/12/2021,Parking & Highways Operations,HALFORDS 0566 CHELMSFORD,11.66,General Expense,5940,BICYCLE SHOPS -- SALES AND SERVICE
CCC_10000266_1,20/12/2021,Leisure & Heritage Services,SCREWFIX DIRECT YEOVIL,49.99,Grounds Maintenance Materials,5211,LUMBER AND BUILDING MATERIALS STORES
CCC_10000274_2,20/12/2021,Parks & Green Spaces,TESCO STORE 2330 CHELMSFORD 2,43.33,Grounds Maintenance Materials,5411,GROCERY STORES OR SUPERMARKETS
CCC_10000276_1,20/12/2021,Leisure & Heritage Services,AMZNMKTPLACE AMAZON.CO.UK,33.96,New Equipment,5999,MISCELLANEOUS & SPECIALTY STORES
CCC_10000280_3,20/12/2021,South Essex Parking Partnership,B&M 096 - BASILDON BASILDON,3.33,General Expense,5399,GENERAL MERCHANDISE OR CONVENIENCE FOOD STORES
CCC_10000314_1,20/12/2021,"Museums, Theatres & Cultural Services",TESCO STORE 2330 CHELMSFORD 2,24,General Expense,5411,GROCERY STORES OR SUPERMARKETS
CCC_10000319_2,20/12/2021,Parks & Green Spaces,SPALDINGS LIMITED LINCOLN,111.26,Grounds Maintenance Materials,8999,PROFESSIONAL SERVICES (NEC)
CCC_10000327_3,20/12/2021,Leisure & Heritage Services,AMAZON.CO.UK F015I5RR5 AMAZON.CO.UK,137.5,New Equipment,5969,DIRECT MARKETERS (NEC)
CCC_10000370_4,20/12/2021,Leisure & Heritage Services,ACTIVITYVILLAGE LEATHERHEAD,15.97,Printing & Stationary,5945," HOBBY, TOY OR GAMES STORES "
CCC_10000273_2,21/12/2021,"Museums, Theatres & Cultural Services",01 ART SERVICES LT LONDON E3,270,Museum Exhibits,5971,ART DEALERS OR GALLERIES
CCC_10000285_7,21/12/2021,Operational Services,EURO CAR PARTS TAMWORTH,14.98,Vehicle Repairs,5533," AUTOMOTIVE PARTS, ACCESSORIES STORES "
CCC_10000289_1,21/12/2021,Parks & Green Spaces,AMAZON.CO.UK QH8K92KC5 AMAZON.CO.UK,14.16,Printing & Stationary,5969,DIRECT MARKETERS (NEC)
CCC_10000289_2,21/12/2021,Parks & Green Spaces,AMAZON.CO.UK N71RR4QV5 AMAZON.CO.UK,14.15,Printing & Stationary,5969,DIRECT MARKETERS (NEC)
CCC_10000292_2,21/12/2021,Parking & Highways Operations,TOOLSTATION UK NORTHAMPTON,15.45,Car Parking,5251,HARDWARE STORES
CCC_10000292_3,21/12/2021,Parking & Highways Operations,WICKES BRAINTREE BRAINTREE,13,Car Parking,5211,LUMBER AND BUILDING MATERIALS STORES
CCC_10000319_1,21/12/2021,Parks & Green Spaces,AMZNMKTPLACE AMAZON.CO AMAZON.CO.UK,104.98,Grounds Maintenance Materials,5999,MISCELLANEOUS & SPECIALTY STORES
CCC_10000742_1,21/12/2021,Public Health & Protection Services,WWW.PLANNING.CO BRISTOL,262,General Expense,7399,BUSINESS SERVICES (NEC)
CCC_10000242_11,22/12/2021,Leisure & Heritage Services,AMAZON.CO.UK RL5E88N85 AMAZON.CO.UK,18,General Expense,5969,DIRECT MARKETERS (NEC)
CCC_10000256_2,22/12/2021,Digital Services,PDQ.COM 801-657-4657,2457.34,General Expense,5045,COMPUTERS AND COMPUTER PERIPHERAL EQUIPMENT AND SOFTWARE
CCC_10000261_1,22/12/2021,Spatial Planning,PPOINT_ PARK STORES 62 WITHAM,18,Publications,5499,MISC FOOD STORES - SPECIALTY MARKETS & CONVENIENCE
CCC_10000263_3,22/12/2021,Housing Services,COLCHESTER BC ONLINE COLCHESTER,142,General Expense,9399,GOVERNMENT SERVICES (NEC) OR FIRE DEPARTMENTS
CCC_10000263_4,22/12/2021,Housing Services,COLCHESTER BC ONLINE COLCHESTER,128,General Expense,9399,GOVERNMENT SERVICES (NEC) OR FIRE DEPARTMENTS
CCC_10000278_6,22/12/2021,"Museums, Theatres & Cultural Services",SCREWFIX DIRECT YEOVIL,19.97,New Equipment,5211,LUMBER AND BUILDING MATERIALS STORES
CCC_10000280_2,22/12/2021,South Essex Parking Partnership,ARCO LTD BASILDON,50.41,General Expense,5085,INDUSTRIAL SUPPLIES (NEC)
CCC_10000285_6,22/12/2021,Operational Services,H BOWERS LIMITED STOKE-ON-TREN,65.68,Vehicle Repairs,5533," AUTOMOTIVE PARTS, ACCESSORIES STORES "
CCC_10000321_2,22/12/2021,Operational Services,FACEBK GAH6LC3RM2 FB.ME/ADS,400,Advertising,7311,ADVERTISING SERVICES
CCC_10000341_1,22/12/2021,Leisure & Heritage Services,DIY DIRECT BIRMINGHAM,13.13,General Expense,5399,GENERAL MERCHANDISE OR CONVENIENCE FOOD STORES
CCC_10000242_10,23/12/2021,Leisure & Heritage Services,AMZNMKTPLACE AMAZON.CO AMAZON.CO.UK,68.54,General Expense,5999,MISCELLANEOUS & SPECIALTY STORES
CCC_10000278_3,23/12/2021,"Museums, Theatres & Cultural Services",BOOKER LIMITED CHELMSF CHELMSFORD,23.9,General Expense,5811,CATERERS
CCC_10000278_4,23/12/2021,"Museums, Theatres & Cultural Services",BOOKER LIMITED CHELMSF CHELMSFORD,14.34,General Expense,5811,CATERERS
CCC_10000278_5,23/12/2021,"Museums, Theatres & Cultural Services",SCREWFIX DIRECT YEOVIL,31.96,New Equipment,5211,LUMBER AND BUILDING MATERIALS STORES
CCC_10000282_1,23/12/2021,Operational Services,DUN-BRI SERVICES LTD BUNTINGFORD,116.1,Vehicle Repairs,5712," FURNITURE, HOME FURNISHINGS & EQUIP STORES EXCL APPLIANCES "
CCC_10000325_6,24/12/2021,South Essex Parking Partnership,MARKS&SPENCER PLC CHELMSFORD,28.83,Clothing & Uniforms,5411,GROCERY STORES OR SUPERMARKETS
CCC_10000264_1,25/12/2021,Leisure & Heritage Services,ROTACLOUD YORK,49,General Expense,5734,COMPUTER SOFTWARE STORES
CCC_10000275_1,27/12/2021,Leisure & Heritage Services,PRINT MARKETPLACE 40 2802345,49.17,Printing & Stationary,7338," PRINT SHOPS, QUICK COPY SERVICES OR REPRODUCTION SERVICES "
CCC_10000359_3,27/12/2021,Marketing & Communications Team,CANVA  I03283-0834224 CAMDEN,30.7,Advertising,7221,PHOTOGRAPHIC STUDIOS
CCC_10000251_1,28/12/2021,Operational Services,10TO8.COM CAMBRIDGE,60,General Expense,5817,DIGITAL GOODS: APPLICATIONS (EXCLUDES GAMES)
CCC_10000269_1,28/12/2021,"Museums, Theatres & Cultural Services",AMAZON.CO.UK E650A81R5 AMAZON.CO.UK,21.23,New Equipment,5969,DIRECT MARKETERS (NEC)
CCC_10000287_1,28/12/2021,Leisure & Heritage Services,AMZNMKTPLACE AMAZON.CO.UK,14.99,New Equipment,5999,MISCELLANEOUS & SPECIALTY STORES
CCC_10000321_1,28/12/2021,Operational Services,FACEBK GXEHTABRM2 FB.ME/ADS,125.02,Advertising,7311,ADVERTISING SERVICES
CCC_10000242_9,29/12/2021,Leisure & Heritage Services,AMAZON.CO.UK LE8BI2ED5 AMAZON.CO.UK,13.49,General Expense,5969,DIRECT MARKETERS (NEC)
CCC_10000278_2,29/12/2021,"Museums, Theatres & Cultural Services",SCREWFIX DIRECT YEOVIL,26.63,New Equipment,5211,LUMBER AND BUILDING MATERIALS STORES
CCC_10000280_1,29/12/2021,South Essex Parking Partnership,SHELL SOUTH WEALD BRENTWOOD,19.55,General Expense,5541,GAS/SERVICE STATIONS WITH/WITHOUT ANCILLARY SERVICES
CCC_10000325_5,29/12/2021,South Essex Parking Partnership,HALFORDS 0803 RAYLEIGH,24.15,New Equipment,5940,BICYCLE SHOPS -- SALES AND SERVICE
CCC_10000391_1,29/12/2021,Leisure & Heritage Services,TESCO STORE 2330 CHELMSFORD 2,83.33,New Equipment,5411,GROCERY STORES OR SUPERMARKETS
CCC_10000278_1,30/12/2021,"Museums, Theatres & Cultural Services",BOOKER LIMITED CHELMSF CHELMSFORD,254.18,General Expense,5811,CATERERS
CCC_10000285_1,30/12/2021,Operational Services,EURO CAR PARTS TAMWORTH,25.82,Vehicle Repairs,5533," AUTOMOTIVE PARTS, ACCESSORIES STORES "
CCC_10000292_1,30/12/2021,Parking & Highways Operations,SCREWFIX DIRECT YEOVIL,3.32,Car Parking,5211,LUMBER AND BUILDING MATERIALS STORES
CCC_10000359_2,31/12/2021,Marketing & Communications Team,FACEBK ZSAAK8FZ52 FB.ME/ADS,145.55,Advertising,7311,ADVERTISING SERVICES
CCC_10000723_2,31/12/2021,Marketing & Communications Team,FACEBK G8G289BL92 FB.ME/ADS,42.91,Advertising,7311,ADVERTISING SERVICES
CCC_10000359_1,01/01/2022,Marketing & Communications Team,GOOGLE ADS9290904130 DUBLIN,74.6,Advertising,7311,ADVERTISING SERVICES
